{"text_format":"1","workbook":"xlsx","n_sheets":1,"sheets":["Mail"],"not_rendered":{"charts":0,"images":0,"macros":1,"external_links":0,"defined_names":0,"comments":0,"pivot_tables":0},"unopened":[],"bounds":{"document_bytes":16777216,"sheet_cells":100000,"rows_first":2000,"rows_last":500,"rows_between":2000,"halvings":0,"cell_chars":16384,"cell_head_chars":4096},"cells_cut":0,"cells_raw":0,"read":"whole","date_system":"1900"}

{"sheet":"Mail","index":0,"n_rows":30000,"n_cols":7,"rows_kept":4500,"cut":true,"hidden":false,"merged":[],"bounds":{"rows_first":2000,"rows_last":500,"rows_between":2000,"halvings":0}}
["Inlogsleutel","Teamnaam","URL","Aanhef","Naam","Mailadres","Aanhef in mail"]
[null,null,{"$f":"IF(A2=\"\",\"\",HYPERLINK(\"https://www.medewerkermonitor.nl/\" & A2))","v":""},null,null,null,{"$f":"IF(D2=\"\",\"\",\"Beste \"&D2&\" \"&E2&\",\")","v":""}]
[null,null,{"$f":"IF(A3=\"\",\"\",HYPERLINK(\"https://www.medewerkermonitor.nl/\" & A3))","v":""},null,null,null,{"$f":"IF(D3=\"\",\"\",\"Beste \"&D3&\" \"&E3&\",\")","v":""}]
[null,null,"",null,null,null,""]
[null,null,"",null,null,null,""]
[null,null,"",null,null,null,""]
[null,null,"",null,null,null,""]
[null,null,"",null,null,null,""]
[null,null,"",null,null,null,""]
[null,null,"",null,null,null,""]
[null,null,"",null,null,null,""]
[null,null,"",null,null,null,""]
[null,null,"",null,null,null,""]
[null,null,"",null,null,null,""]
[null,null,"",null,null,null,""]
[null,null,"",null,null,null,""]
[null,null,"",null,null,null,""]
[null,null,"",null,null,null,""]
[null,null,"",null,null,null,""]
[null,null,"",null,null,null,""]
[null,null,"",null,null,null,""]
[null,null,"",null,null,null,""]
[null,null,"",null,null,null,""]
[null,null,"",null,null,null,""]
[null,null,"",null,null,null,""]
[null,null,"",null,null,null,""]
[null,null,"",null,null,null,""]
[null,null,"",null,null,null,""]
[null,null,"",null,null,null,""]
[null,null,"",null,null,null,""]
[null,null,"",null,null,null,""]
[null,null,"",null,null,null,""]
[null,null,"",null,null,null,""]
[null,null,"",null,null,null,""]
[null,null,"",null,null,null,""]
[null,null,"",null,null,null,""]
[null,null,"",null,null,null,""]
[null,null,"",null,null,null,""]
[null,null,"",null,null,null,""]
[null,null,"",null,null,null,""]
[null,null,"",null,null,null,""]
[null,null,"",null,null,null,""]
[null,null,"",null,null,null,""]
[null,null,"",null,null,null,""]
[null,null,"",null,null,null,""]
[null,null,"",null,null,null,""]
[null,null,"",null,null,null,""]
[null,null,"",null,null,null,""]
[null,null,"",null,null,null,""]
[null,null,"",null,null,null,""]
[null,null,"",null,null,null,""]
[null,null,"",null,null,null,""]
[null,null,"",null,null,null,""]
[null,null,"",null,null,null,""]
[null,null,"",null,null,null,""]
[null,null,"",null,null,null,""]
[null,null,"",null,null,null,""]
[null,null,"",null,null,null,""]
[null,null,"",null,null,null,""]
[null,null,"",null,null,null,""]
[null,null,"",null,null,null,""]
[null,null,"",null,null,null,""]
[null,null,"",null,null,null,""]
[null,null,"",null,null,null,""]
[null,null,"",null,null,null,""]
[null,null,"",null,null,null,""]
[null,null,{"$f":"IF(A67=\"\",\"\",HYPERLINK(\"https://www.medewerkermonitor.nl/\" & A67))","v":""},null,null,null,{"$f":"IF(D67=\"\",\"\",\"Beste \"&D67&\" \"&E67&\",\")","v":""}]
[null,null,"",null,null,null,""]
[null,null,"",null,null,null,""]
[null,null,"",null,null,null,""]
[null,null,"",null,null,null,""]
[null,null,"",null,null,null,""]
[null,null,"",null,null,null,""]
[null,null,"",null,null,null,""]
[null,null,"",null,null,null,""]
[null,null,"",null,null,null,""]
[null,null,"",null,null,null,""]
[null,null,"",null,null,null,""]
[null,null,"",null,null,null,""]
[null,null,"",null,null,null,""]
[null,null,"",null,null,null,""]
[null,null,"",null,null,null,""]
[null,null,"",null,null,null,""]
[null,null,"",null,null,null,""]
[null,null,"",null,null,null,""]
[null,null,"",null,null,null,""]
[null,null,"",null,null,null,""]
[null,null,"",null,null,null,""]
[null,null,"",null,null,null,""]
[null,null,"",null,null,null,""]
[null,null,"",null,null,null,""]
[null,null,"",null,null,null,""]
[null,null,"",null,null,null,""]
[null,null,"",null,null,null,""]
[null,null,"",null,null,null,""]
[null,null,"",null,null,null,""]
[null,null,"",null,null,null,""]
[null,null,"",null,null,null,""]
[null,null,"",null,null,null,""]
[null,null,"",null,null,null,""]
[null,null,"",null,null,null,""]
[null,null,"",null,null,null,""]
[null,null,"",null,null,null,""]
[null,null,"",null,null,null,""]
[null,null,"",null,null,null,""]
[null,null,"",null,null,null,""]
[null,null,"",null,null,null,""]
[null,null,"",null,null,null,""]
[null,null,"",null,null,null,""]
[null,null,"",null,null,null,""]
[null,null,"",null,null,null,""]
[null,null,"",null,null,null,""]
[null,null,"",null,null,null,""]
[null,null,"",null,null,null,""]
[null,null,"",null,null,null,""]
[null,null,"",null,null,null,""]
[null,null,"",null,null,null,""]
[null,null,"",null,null,null,""]
[null,null,"",null,null,null,""]
[null,null,"",null,null,null,""]
[null,null,"",null,null,null,""]
[null,null,"",null,null,null,""]
[null,null,"",null,null,null,""]
[null,null,"",null,null,null,""]
[null,null,"",null,null,null,""]
[null,null,"",null,null,null,""]
[null,null,"",null,null,null,""]
[null,null,"",null,null,null,""]
[null,null,"",null,null,null,""]
[null,null,"",null,null,null,""]
[null,null,{"$f":"IF(A131=\"\",\"\",HYPERLINK(\"https://www.medewerkermonitor.nl/\" & A131))","v":""},null,null,null,{"$f":"IF(D131=\"\",\"\",\"Beste \"&D131&\" \"&E131&\",\")","v":""}]
[null,null,"",null,null,null,""]
[null,null,"",null,null,null,""]
[null,null,"",null,null,null,""]
[null,null,"",null,null,null,""]
[null,null,"",null,null,null,""]
[null,null,"",null,null,null,""]
[null,null,"",null,null,null,""]
[null,null,"",null,null,null,""]
[null,null,"",null,null,null,""]
[null,null,"",null,null,null,""]
[null,null,"",null,null,null,""]
[null,null,"",null,null,null,""]
[null,null,"",null,null,null,""]
[null,null,"",null,null,null,""]
[null,null,"",null,null,null,""]
[null,null,"",null,null,null,""]
[null,null,"",null,null,null,""]
[null,null,"",null,null,null,""]
[null,null,"",null,null,null,""]
[null,null,"",null,null,null,""]
[null,null,"",null,null,null,""]
[null,null,"",null,null,null,""]
[null,null,"",null,null,null,""]
[null,null,"",null,null,null,""]
[null,null,"",null,null,null,""]
[null,null,"",null,null,null,""]
[null,null,"",null,null,null,""]
[null,null,"",null,null,null,""]
[null,null,"",null,null,null,""]
[null,null,"",null,null,null,""]
[null,null,"",null,null,null,""]
[null,null,"",null,null,null,""]
[null,null,"",null,null,null,""]
[null,null,"",null,null,null,""]
[null,null,"",null,null,null,""]
[null,null,"",null,null,null,""]
[null,null,"",null,null,null,""]
[null,null,"",null,null,null,""]
[null,null,"",null,null,null,""]
[null,null,"",null,null,null,""]
[null,null,"",null,null,null,""]
[null,null,"",null,null,null,""]
[null,null,"",null,null,null,""]
[null,null,"",null,null,null,""]
[null,null,"",null,null,null,""]
[null,null,"",null,null,null,""]
[null,null,"",null,null,null,""]
[null,null,"",null,null,null,""]
[null,null,"",null,null,null,""]
[null,null,"",null,null,null,""]
[null,null,"",null,null,null,""]
[null,null,"",null,null,null,""]
[null,null,"",null,null,null,""]
[null,null,"",null,null,null,""]
[null,null,"",null,null,null,""]
[null,null,"",null,null,null,""]
[null,null,"",null,null,null,""]
[null,null,"",null,null,null,""]
[null,null,"",null,null,null,""]
[null,null,"",null,null,null,""]
[null,null,"",null,null,null,""]
[null,null,"",null,null,null,""]
[null,null,"",null,null,null,""]
[null,null,{"$f":"IF(A195=\"\",\"\",HYPERLINK(\"https://www.medewerkermonitor.nl/\" & A195))","v":""},null,null,null,{"$f":"IF(D195=\"\",\"\",\"Beste \"&D195&\" \"&E195&\",\")","v":""}]
[null,null,"",null,null,null,""]
[null,null,"",null,null,null,""]
[null,null,"",null,null,null,""]
[null,null,"",null,null,null,""]
[null,null,"",null,null,null,""]
[null,null,"",null,null,null,""]
[null,null,"",null,null,null,""]
[null,null,"",null,null,null,""]
[null,null,"",null,null,null,""]
[null,null,"",null,null,null,""]
[null,null,"",null,null,null,""]
[null,null,"",null,null,null,""]
[null,null,"",null,null,null,""]
[null,null,"",null,null,null,""]
[null,null,"",null,null,null,""]
[null,null,"",null,null,null,""]
[null,null,"",null,null,null,""]
[null,null,"",null,null,null,""]
[null,null,"",null,null,null,""]
[null,null,"",null,null,null,""]
[null,null,"",null,null,null,""]
[null,null,"",null,null,null,""]
[null,null,"",null,null,null,""]
[null,null,"",null,null,null,""]
[null,null,"",null,null,null,""]
[null,null,"",null,null,null,""]
[null,null,"",null,null,null,""]
[null,null,"",null,null,null,""]
[null,null,"",null,null,null,""]
[null,null,"",null,null,null,""]
[null,null,"",null,null,null,""]
[null,null,"",null,null,null,""]
[null,null,"",null,null,null,""]
[null,null,"",null,null,null,""]
[null,null,"",null,null,null,""]
[null,null,"",null,null,null,""]
[null,null,"",null,null,null,""]
[null,null,"",null,null,null,""]
[null,null,"",null,null,null,""]
[null,null,"",null,null,null,""]
[null,null,"",null,null,null,""]
[null,null,"",null,null,null,""]
[null,null,"",null,null,null,""]
[null,null,"",null,null,null,""]
[null,null,"",null,null,null,""]
[null,null,"",null,null,null,""]
[null,null,"",null,null,null,""]
[null,null,"",null,null,null,""]
[null,null,"",null,null,null,""]
[null,null,"",null,null,null,""]
[null,null,"",null,null,null,""]
[null,null,"",null,null,null,""]
[null,null,"",null,null,null,""]
[null,null,"",null,null,null,""]
[null,null,"",null,null,null,""]
[null,null,"",null,null,null,""]
[null,null,"",null,null,null,""]
[null,null,"",null,null,null,""]
[null,null,"",null,null,null,""]
[null,null,"",null,null,null,""]
[null,null,"",null,null,null,""]
[null,null,"",null,null,null,""]
[null,null,"",null,null,null,""]
[null,null,{"$f":"IF(A259=\"\",\"\",HYPERLINK(\"https://www.medewerkermonitor.nl/\" & A259))","v":""},null,null,null,{"$f":"IF(D259=\"\",\"\",\"Beste \"&D259&\" \"&E259&\",\")","v":""}]
[null,null,"",null,null,null,""]
[null,null,"",null,null,null,""]
[null,null,"",null,null,null,""]
[null,null,"",null,null,null,""]
[null,null,"",null,null,null,""]
[null,null,"",null,null,null,""]
[null,null,"",null,null,null,""]
[null,null,"",null,null,null,""]
[null,null,"",null,null,null,""]
[null,null,"",null,null,null,""]
[null,null,"",null,null,null,""]
[null,null,"",null,null,null,""]
[null,null,"",null,null,null,""]
[null,null,"",null,null,null,""]
[null,null,"",null,null,null,""]
[null,null,"",null,null,null,""]
[null,null,"",null,null,null,""]
[null,null,"",null,null,null,""]
[null,null,"",null,null,null,""]
[null,null,"",null,null,null,""]
[null,null,"",null,null,null,""]
[null,null,"",null,null,null,""]
[null,null,"",null,null,null,""]
[null,null,"",null,null,null,""]
[null,null,"",null,null,null,""]
[null,null,"",null,null,null,""]
[null,null,"",null,null,null,""]
[null,null,"",null,null,null,""]
[null,null,"",null,null,null,""]
[null,null,"",null,null,null,""]
[null,null,"",null,null,null,""]
[null,null,"",null,null,null,""]
[null,null,"",null,null,null,""]
[null,null,"",null,null,null,""]
[null,null,"",null,null,null,""]
[null,null,"",null,null,null,""]
[null,null,"",null,null,null,""]
[null,null,"",null,null,null,""]
[null,null,"",null,null,null,""]
[null,null,"",null,null,null,""]
[null,null,"",null,null,null,""]
[null,null,"",null,null,null,""]
[null,null,"",null,null,null,""]
[null,null,"",null,null,null,""]
[null,null,"",null,null,null,""]
[null,null,"",null,null,null,""]
[null,null,"",null,null,null,""]
[null,null,"",null,null,null,""]
[null,null,"",null,null,null,""]
[null,null,"",null,null,null,""]
[null,null,"",null,null,null,""]
[null,null,"",null,null,null,""]
[null,null,"",null,null,null,""]
[null,null,"",null,null,null,""]
[null,null,"",null,null,null,""]
[null,null,"",null,null,null,""]
[null,null,"",null,null,null,""]
[null,null,"",null,null,null,""]
[null,null,"",null,null,null,""]
[null,null,"",null,null,null,""]
[null,null,"",null,null,null,""]
[null,null,"",null,null,null,""]
[null,null,"",null,null,null,""]
[null,null,{"$f":"IF(A323=\"\",\"\",HYPERLINK(\"https://www.medewerkermonitor.nl/\" & A323))","v":""},null,null,null,{"$f":"IF(D323=\"\",\"\",\"Beste \"&D323&\" \"&E323&\",\")","v":""}]
[null,null,"",null,null,null,""]
[null,null,"",null,null,null,""]
[null,null,"",null,null,null,""]
[null,null,"",null,null,null,""]
[null,null,"",null,null,null,""]
[null,null,"",null,null,null,""]
[null,null,"",null,null,null,""]
[null,null,"",null,null,null,""]
[null,null,"",null,null,null,""]
[null,null,"",null,null,null,""]
[null,null,"",null,null,null,""]
[null,null,"",null,null,null,""]
[null,null,"",null,null,null,""]
[null,null,"",null,null,null,""]
[null,null,"",null,null,null,""]
[null,null,"",null,null,null,""]
[null,null,"",null,null,null,""]
[null,null,"",null,null,null,""]
[null,null,"",null,null,null,""]
[null,null,"",null,null,null,""]
[null,null,"",null,null,null,""]
[null,null,"",null,null,null,""]
[null,null,"",null,null,null,""]
[null,null,"",null,null,null,""]
[null,null,"",null,null,null,""]
[null,null,"",null,null,null,""]
[null,null,"",null,null,null,""]
[null,null,"",null,null,null,""]
[null,null,"",null,null,null,""]
[null,null,"",null,null,null,""]
[null,null,"",null,null,null,""]
[null,null,"",null,null,null,""]
[null,null,"",null,null,null,""]
[null,null,"",null,null,null,""]
[null,null,"",null,null,null,""]
[null,null,"",null,null,null,""]
[null,null,"",null,null,null,""]
[null,null,"",null,null,null,""]
[null,null,"",null,null,null,""]
[null,null,"",null,null,null,""]
[null,null,"",null,null,null,""]
[null,null,"",null,null,null,""]
[null,null,"",null,null,null,""]
[null,null,"",null,null,null,""]
[null,null,"",null,null,null,""]
[null,null,"",null,null,null,""]
[null,null,"",null,null,null,""]
[null,null,"",null,null,null,""]
[null,null,"",null,null,null,""]
[null,null,"",null,null,null,""]
[null,null,"",null,null,null,""]
[null,null,"",null,null,null,""]
[null,null,"",null,null,null,""]
[null,null,"",null,null,null,""]
[null,null,"",null,null,null,""]
[null,null,"",null,null,null,""]
[null,null,"",null,null,null,""]
[null,null,"",null,null,null,""]
[null,null,"",null,null,null,""]
[null,null,"",null,null,null,""]
[null,null,"",null,null,null,""]
[null,null,"",null,null,null,""]
[null,null,"",null,null,null,""]
[null,null,{"$f":"IF(A387=\"\",\"\",HYPERLINK(\"https://www.medewerkermonitor.nl/\" & A387))","v":""},null,null,null,{"$f":"IF(D387=\"\",\"\",\"Beste \"&D387&\" \"&E387&\",\")","v":""}]
[null,null,"",null,null,null,""]
[null,null,"",null,null,null,""]
[null,null,"",null,null,null,""]
[null,null,"",null,null,null,""]
[null,null,"",null,null,null,""]
[null,null,"",null,null,null,""]
[null,null,"",null,null,null,""]
[null,null,"",null,null,null,""]
[null,null,"",null,null,null,""]
[null,null,"",null,null,null,""]
[null,null,"",null,null,null,""]
[null,null,"",null,null,null,""]
[null,null,"",null,null,null,""]
[null,null,"",null,null,null,""]
[null,null,"",null,null,null,""]
[null,null,"",null,null,null,""]
[null,null,"",null,null,null,""]
[null,null,"",null,null,null,""]
[null,null,"",null,null,null,""]
[null,null,"",null,null,null,""]
[null,null,"",null,null,null,""]
[null,null,"",null,null,null,""]
[null,null,"",null,null,null,""]
[null,null,"",null,null,null,""]
[null,null,"",null,null,null,""]
[null,null,"",null,null,null,""]
[null,null,"",null,null,null,""]
[null,null,"",null,null,null,""]
[null,null,"",null,null,null,""]
[null,null,"",null,null,null,""]
[null,null,"",null,null,null,""]
[null,null,"",null,null,null,""]
[null,null,"",null,null,null,""]
[null,null,"",null,null,null,""]
[null,null,"",null,null,null,""]
[null,null,"",null,null,null,""]
[null,null,"",null,null,null,""]
[null,null,"",null,null,null,""]
[null,null,"",null,null,null,""]
[null,null,"",null,null,null,""]
[null,null,"",null,null,null,""]
[null,null,"",null,null,null,""]
[null,null,"",null,null,null,""]
[null,null,"",null,null,null,""]
[null,null,"",null,null,null,""]
[null,null,"",null,null,null,""]
[null,null,"",null,null,null,""]
[null,null,"",null,null,null,""]
[null,null,"",null,null,null,""]
[null,null,"",null,null,null,""]
[null,null,"",null,null,null,""]
[null,null,"",null,null,null,""]
[null,null,"",null,null,null,""]
[null,null,"",null,null,null,""]
[null,null,"",null,null,null,""]
[null,null,"",null,null,null,""]
[null,null,"",null,null,null,""]
[null,null,"",null,null,null,""]
[null,null,"",null,null,null,""]
[null,null,"",null,null,null,""]
[null,null,"",null,null,null,""]
[null,null,"",null,null,null,""]
[null,null,"",null,null,null,""]
[null,null,{"$f":"IF(A451=\"\",\"\",HYPERLINK(\"https://www.medewerkermonitor.nl/\" & A451))","v":""},null,null,null,{"$f":"IF(D451=\"\",\"\",\"Beste \"&D451&\" \"&E451&\",\")","v":""}]
[null,null,"",null,null,null,""]
[null,null,"",null,null,null,""]
[null,null,"",null,null,null,""]
[null,null,"",null,null,null,""]
[null,null,"",null,null,null,""]
[null,null,"",null,null,null,""]
[null,null,"",null,null,null,""]
[null,null,"",null,null,null,""]
[null,null,"",null,null,null,""]
[null,null,"",null,null,null,""]
[null,null,"",null,null,null,""]
[null,null,"",null,null,null,""]
[null,null,"",null,null,null,""]
[null,null,"",null,null,null,""]
[null,null,"",null,null,null,""]
[null,null,"",null,null,null,""]
[null,null,"",null,null,null,""]
[null,null,"",null,null,null,""]
[null,null,"",null,null,null,""]
[null,null,"",null,null,null,""]
[null,null,"",null,null,null,""]
[null,null,"",null,null,null,""]
[null,null,"",null,null,null,""]
[null,null,"",null,null,null,""]
[null,null,"",null,null,null,""]
[null,null,"",null,null,null,""]
[null,null,"",null,null,null,""]
[null,null,"",null,null,null,""]
[null,null,"",null,null,null,""]
[null,null,"",null,null,null,""]
[null,null,"",null,null,null,""]
[null,null,"",null,null,null,""]
[null,null,"",null,null,null,""]
[null,null,"",null,null,null,""]
[null,null,"",null,null,null,""]
[null,null,"",null,null,null,""]
[null,null,"",null,null,null,""]
[null,null,"",null,null,null,""]
[null,null,"",null,null,null,""]
[null,null,"",null,null,null,""]
[null,null,"",null,null,null,""]
[null,null,"",null,null,null,""]
[null,null,"",null,null,null,""]
[null,null,"",null,null,null,""]
[null,null,"",null,null,null,""]
[null,null,"",null,null,null,""]
[null,null,"",null,null,null,""]
[null,null,"",null,null,null,""]
[null,null,"",null,null,null,""]
[null,null,"",null,null,null,""]
[null,null,"",null,null,null,""]
[null,null,"",null,null,null,""]
[null,null,"",null,null,null,""]
[null,null,"",null,null,null,""]
[null,null,"",null,null,null,""]
[null,null,"",null,null,null,""]
[null,null,"",null,null,null,""]
[null,null,"",null,null,null,""]
[null,null,"",null,null,null,""]
[null,null,"",null,null,null,""]
[null,null,"",null,null,null,""]
[null,null,"",null,null,null,""]
[null,null,"",null,null,null,""]
[null,null,{"$f":"IF(A515=\"\",\"\",HYPERLINK(\"https://www.medewerkermonitor.nl/\" & A515))","v":""},null,null,null,{"$f":"IF(D515=\"\",\"\",\"Beste \"&D515&\" \"&E515&\",\")","v":""}]
[null,null,"",null,null,null,""]
[null,null,"",null,null,null,""]
[null,null,"",null,null,null,""]
[null,null,"",null,null,null,""]
[null,null,"",null,null,null,""]
[null,null,"",null,null,null,""]
[null,null,"",null,null,null,""]
[null,null,"",null,null,null,""]
[null,null,"",null,null,null,""]
[null,null,"",null,null,null,""]
[null,null,"",null,null,null,""]
[null,null,"",null,null,null,""]
[null,null,"",null,null,null,""]
[null,null,"",null,null,null,""]
[null,null,"",null,null,null,""]
[null,null,"",null,null,null,""]
[null,null,"",null,null,null,""]
[null,null,"",null,null,null,""]
[null,null,"",null,null,null,""]
[null,null,"",null,null,null,""]
[null,null,"",null,null,null,""]
[null,null,"",null,null,null,""]
[null,null,"",null,null,null,""]
[null,null,"",null,null,null,""]
[null,null,"",null,null,null,""]
[null,null,"",null,null,null,""]
[null,null,"",null,null,null,""]
[null,null,"",null,null,null,""]
[null,null,"",null,null,null,""]
[null,null,"",null,null,null,""]
[null,null,"",null,null,null,""]
[null,null,"",null,null,null,""]
[null,null,"",null,null,null,""]
[null,null,"",null,null,null,""]
[null,null,"",null,null,null,""]
[null,null,"",null,null,null,""]
[null,null,"",null,null,null,""]
[null,null,"",null,null,null,""]
[null,null,"",null,null,null,""]
[null,null,"",null,null,null,""]
[null,null,"",null,null,null,""]
[null,null,"",null,null,null,""]
[null,null,"",null,null,null,""]
[null,null,"",null,null,null,""]
[null,null,"",null,null,null,""]
[null,null,"",null,null,null,""]
[null,null,"",null,null,null,""]
[null,null,"",null,null,null,""]
[null,null,"",null,null,null,""]
[null,null,"",null,null,null,""]
[null,null,"",null,null,null,""]
[null,null,"",null,null,null,""]
[null,null,"",null,null,null,""]
[null,null,"",null,null,null,""]
[null,null,"",null,null,null,""]
[null,null,"",null,null,null,""]
[null,null,"",null,null,null,""]
[null,null,"",null,null,null,""]
[null,null,"",null,null,null,""]
[null,null,"",null,null,null,""]
[null,null,"",null,null,null,""]
[null,null,"",null,null,null,""]
[null,null,"",null,null,null,""]
[null,null,{"$f":"IF(A579=\"\",\"\",HYPERLINK(\"https://www.medewerkermonitor.nl/\" & A579))","v":""},null,null,null,{"$f":"IF(D579=\"\",\"\",\"Beste \"&D579&\" \"&E579&\",\")","v":""}]
[null,null,"",null,null,null,""]
[null,null,"",null,null,null,""]
[null,null,"",null,null,null,""]
[null,null,"",null,null,null,""]
[null,null,"",null,null,null,""]
[null,null,"",null,null,null,""]
[null,null,"",null,null,null,""]
[null,null,"",null,null,null,""]
[null,null,"",null,null,null,""]
[null,null,"",null,null,null,""]
[null,null,"",null,null,null,""]
[null,null,"",null,null,null,""]
[null,null,"",null,null,null,""]
[null,null,"",null,null,null,""]
[null,null,"",null,null,null,""]
[null,null,"",null,null,null,""]
[null,null,"",null,null,null,""]
[null,null,"",null,null,null,""]
[null,null,"",null,null,null,""]
[null,null,"",null,null,null,""]
[null,null,"",null,null,null,""]
[null,null,"",null,null,null,""]
[null,null,"",null,null,null,""]
[null,null,"",null,null,null,""]
[null,null,"",null,null,null,""]
[null,null,"",null,null,null,""]
[null,null,"",null,null,null,""]
[null,null,"",null,null,null,""]
[null,null,"",null,null,null,""]
[null,null,"",null,null,null,""]
[null,null,"",null,null,null,""]
[null,null,"",null,null,null,""]
[null,null,"",null,null,null,""]
[null,null,"",null,null,null,""]
[null,null,"",null,null,null,""]
[null,null,"",null,null,null,""]
[null,null,"",null,null,null,""]
[null,null,"",null,null,null,""]
[null,null,"",null,null,null,""]
[null,null,"",null,null,null,""]
[null,null,"",null,null,null,""]
[null,null,"",null,null,null,""]
[null,null,"",null,null,null,""]
[null,null,"",null,null,null,""]
[null,null,"",null,null,null,""]
[null,null,"",null,null,null,""]
[null,null,"",null,null,null,""]
[null,null,"",null,null,null,""]
[null,null,"",null,null,null,""]
[null,null,"",null,null,null,""]
[null,null,"",null,null,null,""]
[null,null,"",null,null,null,""]
[null,null,"",null,null,null,""]
[null,null,"",null,null,null,""]
[null,null,"",null,null,null,""]
[null,null,"",null,null,null,""]
[null,null,"",null,null,null,""]
[null,null,"",null,null,null,""]
[null,null,"",null,null,null,""]
[null,null,"",null,null,null,""]
[null,null,"",null,null,null,""]
[null,null,"",null,null,null,""]
[null,null,"",null,null,null,""]
[null,null,{"$f":"IF(A643=\"\",\"\",HYPERLINK(\"https://www.medewerkermonitor.nl/\" & A643))","v":""},null,null,null,{"$f":"IF(D643=\"\",\"\",\"Beste \"&D643&\" \"&E643&\",\")","v":""}]
[null,null,"",null,null,null,""]
[null,null,"",null,null,null,""]
[null,null,"",null,null,null,""]
[null,null,"",null,null,null,""]
[null,null,"",null,null,null,""]
[null,null,"",null,null,null,""]
[null,null,"",null,null,null,""]
[null,null,"",null,null,null,""]
[null,null,"",null,null,null,""]
[null,null,"",null,null,null,""]
[null,null,"",null,null,null,""]
[null,null,"",null,null,null,""]
[null,null,"",null,null,null,""]
[null,null,"",null,null,null,""]
[null,null,"",null,null,null,""]
[null,null,"",null,null,null,""]
[null,null,"",null,null,null,""]
[null,null,"",null,null,null,""]
[null,null,"",null,null,null,""]
[null,null,"",null,null,null,""]
[null,null,"",null,null,null,""]
[null,null,"",null,null,null,""]
[null,null,"",null,null,null,""]
[null,null,"",null,null,null,""]
[null,null,"",null,null,null,""]
[null,null,"",null,null,null,""]
[null,null,"",null,null,null,""]
[null,null,"",null,null,null,""]
[null,null,"",null,null,null,""]
[null,null,"",null,null,null,""]
[null,null,"",null,null,null,""]
[null,null,"",null,null,null,""]
[null,null,"",null,null,null,""]
[null,null,"",null,null,null,""]
[null,null,"",null,null,null,""]
[null,null,"",null,null,null,""]
[null,null,"",null,null,null,""]
[null,null,"",null,null,null,""]
[null,null,"",null,null,null,""]
[null,null,"",null,null,null,""]
[null,null,"",null,null,null,""]
[null,null,"",null,null,null,""]
[null,null,"",null,null,null,""]
[null,null,"",null,null,null,""]
[null,null,"",null,null,null,""]
[null,null,"",null,null,null,""]
[null,null,"",null,null,null,""]
[null,null,"",null,null,null,""]
[null,null,"",null,null,null,""]
[null,null,"",null,null,null,""]
[null,null,"",null,null,null,""]
[null,null,"",null,null,null,""]
[null,null,"",null,null,null,""]
[null,null,"",null,null,null,""]
[null,null,"",null,null,null,""]
[null,null,"",null,null,null,""]
[null,null,"",null,null,null,""]
[null,null,"",null,null,null,""]
[null,null,"",null,null,null,""]
[null,null,"",null,null,null,""]
[null,null,"",null,null,null,""]
[null,null,"",null,null,null,""]
[null,null,"",null,null,null,""]
[null,null,{"$f":"IF(A707=\"\",\"\",HYPERLINK(\"https://www.medewerkermonitor.nl/\" & A707))","v":""},null,null,null,{"$f":"IF(D707=\"\",\"\",\"Beste \"&D707&\" \"&E707&\",\")","v":""}]
[null,null,"",null,null,null,""]
[null,null,"",null,null,null,""]
[null,null,"",null,null,null,""]
[null,null,"",null,null,null,""]
[null,null,"",null,null,null,""]
[null,null,"",null,null,null,""]
[null,null,"",null,null,null,""]
[null,null,"",null,null,null,""]
[null,null,"",null,null,null,""]
[null,null,"",null,null,null,""]
[null,null,"",null,null,null,""]
[null,null,"",null,null,null,""]
[null,null,"",null,null,null,""]
[null,null,"",null,null,null,""]
[null,null,"",null,null,null,""]
[null,null,"",null,null,null,""]
[null,null,"",null,null,null,""]
[null,null,"",null,null,null,""]
[null,null,"",null,null,null,""]
[null,null,"",null,null,null,""]
[null,null,"",null,null,null,""]
[null,null,"",null,null,null,""]
[null,null,"",null,null,null,""]
[null,null,"",null,null,null,""]
[null,null,"",null,null,null,""]
[null,null,"",null,null,null,""]
[null,null,"",null,null,null,""]
[null,null,"",null,null,null,""]
[null,null,"",null,null,null,""]
[null,null,"",null,null,null,""]
[null,null,"",null,null,null,""]
[null,null,"",null,null,null,""]
[null,null,"",null,null,null,""]
[null,null,"",null,null,null,""]
[null,null,"",null,null,null,""]
[null,null,"",null,null,null,""]
[null,null,"",null,null,null,""]
[null,null,"",null,null,null,""]
[null,null,"",null,null,null,""]
[null,null,"",null,null,null,""]
[null,null,"",null,null,null,""]
[null,null,"",null,null,null,""]
[null,null,"",null,null,null,""]
[null,null,"",null,null,null,""]
[null,null,"",null,null,null,""]
[null,null,"",null,null,null,""]
[null,null,"",null,null,null,""]
[null,null,"",null,null,null,""]
[null,null,"",null,null,null,""]
[null,null,"",null,null,null,""]
[null,null,"",null,null,null,""]
[null,null,"",null,null,null,""]
[null,null,"",null,null,null,""]
[null,null,"",null,null,null,""]
[null,null,"",null,null,null,""]
[null,null,"",null,null,null,""]
[null,null,"",null,null,null,""]
[null,null,"",null,null,null,""]
[null,null,"",null,null,null,""]
[null,null,"",null,null,null,""]
[null,null,"",null,null,null,""]
[null,null,"",null,null,null,""]
[null,null,"",null,null,null,""]
[null,null,{"$f":"IF(A771=\"\",\"\",HYPERLINK(\"https://www.medewerkermonitor.nl/\" & A771))","v":""},null,null,null,{"$f":"IF(D771=\"\",\"\",\"Beste \"&D771&\" \"&E771&\",\")","v":""}]
[null,null,"",null,null,null,""]
[null,null,"",null,null,null,""]
[null,null,"",null,null,null,""]
[null,null,"",null,null,null,""]
[null,null,"",null,null,null,""]
[null,null,"",null,null,null,""]
[null,null,"",null,null,null,""]
[null,null,"",null,null,null,""]
[null,null,"",null,null,null,""]
[null,null,"",null,null,null,""]
[null,null,"",null,null,null,""]
[null,null,"",null,null,null,""]
[null,null,"",null,null,null,""]
[null,null,"",null,null,null,""]
[null,null,"",null,null,null,""]
[null,null,"",null,null,null,""]
[null,null,"",null,null,null,""]
[null,null,"",null,null,null,""]
[null,null,"",null,null,null,""]
[null,null,"",null,null,null,""]
[null,null,"",null,null,null,""]
[null,null,"",null,null,null,""]
[null,null,"",null,null,null,""]
[null,null,"",null,null,null,""]
[null,null,"",null,null,null,""]
[null,null,"",null,null,null,""]
[null,null,"",null,null,null,""]
[null,null,"",null,null,null,""]
[null,null,"",null,null,null,""]
[null,null,"",null,null,null,""]
[null,null,"",null,null,null,""]
[null,null,"",null,null,null,""]
[null,null,"",null,null,null,""]
[null,null,"",null,null,null,""]
[null,null,"",null,null,null,""]
[null,null,"",null,null,null,""]
[null,null,"",null,null,null,""]
[null,null,"",null,null,null,""]
[null,null,"",null,null,null,""]
[null,null,"",null,null,null,""]
[null,null,"",null,null,null,""]
[null,null,"",null,null,null,""]
[null,null,"",null,null,null,""]
[null,null,"",null,null,null,""]
[null,null,"",null,null,null,""]
[null,null,"",null,null,null,""]
[null,null,"",null,null,null,""]
[null,null,"",null,null,null,""]
[null,null,"",null,null,null,""]
[null,null,"",null,null,null,""]
[null,null,"",null,null,null,""]
[null,null,"",null,null,null,""]
[null,null,"",null,null,null,""]
[null,null,"",null,null,null,""]
[null,null,"",null,null,null,""]
[null,null,"",null,null,null,""]
[null,null,"",null,null,null,""]
[null,null,"",null,null,null,""]
[null,null,"",null,null,null,""]
[null,null,"",null,null,null,""]
[null,null,"",null,null,null,""]
[null,null,"",null,null,null,""]
[null,null,"",null,null,null,""]
[null,null,{"$f":"IF(A835=\"\",\"\",HYPERLINK(\"https://www.medewerkermonitor.nl/\" & A835))","v":""},null,null,null,{"$f":"IF(D835=\"\",\"\",\"Beste \"&D835&\" \"&E835&\",\")","v":""}]
[null,null,"",null,null,null,""]
[null,null,"",null,null,null,""]
[null,null,"",null,null,null,""]
[null,null,"",null,null,null,""]
[null,null,"",null,null,null,""]
[null,null,"",null,null,null,""]
[null,null,"",null,null,null,""]
[null,null,"",null,null,null,""]
[null,null,"",null,null,null,""]
[null,null,"",null,null,null,""]
[null,null,"",null,null,null,""]
[null,null,"",null,null,null,""]
[null,null,"",null,null,null,""]
[null,null,"",null,null,null,""]
[null,null,"",null,null,null,""]
[null,null,"",null,null,null,""]
[null,null,"",null,null,null,""]
[null,null,"",null,null,null,""]
[null,null,"",null,null,null,""]
[null,null,"",null,null,null,""]
[null,null,"",null,null,null,""]
[null,null,"",null,null,null,""]
[null,null,"",null,null,null,""]
[null,null,"",null,null,null,""]
[null,null,"",null,null,null,""]
[null,null,"",null,null,null,""]
[null,null,"",null,null,null,""]
[null,null,"",null,null,null,""]
[null,null,"",null,null,null,""]
[null,null,"",null,null,null,""]
[null,null,"",null,null,null,""]
[null,null,"",null,null,null,""]
[null,null,"",null,null,null,""]
[null,null,"",null,null,null,""]
[null,null,"",null,null,null,""]
[null,null,"",null,null,null,""]
[null,null,"",null,null,null,""]
[null,null,"",null,null,null,""]
[null,null,"",null,null,null,""]
[null,null,"",null,null,null,""]
[null,null,"",null,null,null,""]
[null,null,"",null,null,null,""]
[null,null,"",null,null,null,""]
[null,null,"",null,null,null,""]
[null,null,"",null,null,null,""]
[null,null,"",null,null,null,""]
[null,null,"",null,null,null,""]
[null,null,"",null,null,null,""]
[null,null,"",null,null,null,""]
[null,null,"",null,null,null,""]
[null,null,"",null,null,null,""]
[null,null,"",null,null,null,""]
[null,null,"",null,null,null,""]
[null,null,"",null,null,null,""]
[null,null,"",null,null,null,""]
[null,null,"",null,null,null,""]
[null,null,"",null,null,null,""]
[null,null,"",null,null,null,""]
[null,null,"",null,null,null,""]
[null,null,"",null,null,null,""]
[null,null,"",null,null,null,""]
[null,null,"",null,null,null,""]
[null,null,"",null,null,null,""]
[null,null,{"$f":"IF(A899=\"\",\"\",HYPERLINK(\"https://www.medewerkermonitor.nl/\" & A899))","v":""},null,null,null,{"$f":"IF(D899=\"\",\"\",\"Beste \"&D899&\" \"&E899&\",\")","v":""}]
[null,null,"",null,null,null,""]
[null,null,"",null,null,null,""]
[null,null,"",null,null,null,""]
[null,null,"",null,null,null,""]
[null,null,"",null,null,null,""]
[null,null,"",null,null,null,""]
[null,null,"",null,null,null,""]
[null,null,"",null,null,null,""]
[null,null,"",null,null,null,""]
[null,null,"",null,null,null,""]
[null,null,"",null,null,null,""]
[null,null,"",null,null,null,""]
[null,null,"",null,null,null,""]
[null,null,"",null,null,null,""]
[null,null,"",null,null,null,""]
[null,null,"",null,null,null,""]
[null,null,"",null,null,null,""]
[null,null,"",null,null,null,""]
[null,null,"",null,null,null,""]
[null,null,"",null,null,null,""]
[null,null,"",null,null,null,""]
[null,null,"",null,null,null,""]
[null,null,"",null,null,null,""]
[null,null,"",null,null,null,""]
[null,null,"",null,null,null,""]
[null,null,"",null,null,null,""]
[null,null,"",null,null,null,""]
[null,null,"",null,null,null,""]
[null,null,"",null,null,null,""]
[null,null,"",null,null,null,""]
[null,null,"",null,null,null,""]
[null,null,"",null,null,null,""]
[null,null,"",null,null,null,""]
[null,null,"",null,null,null,""]
[null,null,"",null,null,null,""]
[null,null,"",null,null,null,""]
[null,null,"",null,null,null,""]
[null,null,"",null,null,null,""]
[null,null,"",null,null,null,""]
[null,null,"",null,null,null,""]
[null,null,"",null,null,null,""]
[null,null,"",null,null,null,""]
[null,null,"",null,null,null,""]
[null,null,"",null,null,null,""]
[null,null,"",null,null,null,""]
[null,null,"",null,null,null,""]
[null,null,"",null,null,null,""]
[null,null,"",null,null,null,""]
[null,null,"",null,null,null,""]
[null,null,"",null,null,null,""]
[null,null,"",null,null,null,""]
[null,null,"",null,null,null,""]
[null,null,"",null,null,null,""]
[null,null,"",null,null,null,""]
[null,null,"",null,null,null,""]
[null,null,"",null,null,null,""]
[null,null,"",null,null,null,""]
[null,null,"",null,null,null,""]
[null,null,"",null,null,null,""]
[null,null,"",null,null,null,""]
[null,null,"",null,null,null,""]
[null,null,"",null,null,null,""]
[null,null,"",null,null,null,""]
[null,null,{"$f":"IF(A963=\"\",\"\",HYPERLINK(\"https://www.medewerkermonitor.nl/\" & A963))","v":""},null,null,null,{"$f":"IF(D963=\"\",\"\",\"Beste \"&D963&\" \"&E963&\",\")","v":""}]
[null,null,"",null,null,null,""]
[null,null,"",null,null,null,""]
[null,null,"",null,null,null,""]
[null,null,"",null,null,null,""]
[null,null,"",null,null,null,""]
[null,null,"",null,null,null,""]
[null,null,"",null,null,null,""]
[null,null,"",null,null,null,""]
[null,null,"",null,null,null,""]
[null,null,"",null,null,null,""]
[null,null,"",null,null,null,""]
[null,null,"",null,null,null,""]
[null,null,"",null,null,null,""]
[null,null,"",null,null,null,""]
[null,null,"",null,null,null,""]
[null,null,"",null,null,null,""]
[null,null,"",null,null,null,""]
[null,null,"",null,null,null,""]
[null,null,"",null,null,null,""]
[null,null,"",null,null,null,""]
[null,null,"",null,null,null,""]
[null,null,"",null,null,null,""]
[null,null,"",null,null,null,""]
[null,null,"",null,null,null,""]
[null,null,"",null,null,null,""]
[null,null,"",null,null,null,""]
[null,null,"",null,null,null,""]
[null,null,"",null,null,null,""]
[null,null,"",null,null,null,""]
[null,null,"",null,null,null,""]
[null,null,"",null,null,null,""]
[null,null,"",null,null,null,""]
[null,null,"",null,null,null,""]
[null,null,"",null,null,null,""]
[null,null,"",null,null,null,""]
[null,null,"",null,null,null,""]
[null,null,"",null,null,null,""]
[null,null,"",null,null,null,""]
[null,null,"",null,null,null,""]
[null,null,"",null,null,null,""]
[null,null,"",null,null,null,""]
[null,null,"",null,null,null,""]
[null,null,"",null,null,null,""]
[null,null,"",null,null,null,""]
[null,null,"",null,null,null,""]
[null,null,"",null,null,null,""]
[null,null,"",null,null,null,""]
[null,null,"",null,null,null,""]
[null,null,"",null,null,null,""]
[null,null,"",null,null,null,""]
[null,null,"",null,null,null,""]
[null,null,"",null,null,null,""]
[null,null,"",null,null,null,""]
[null,null,"",null,null,null,""]
[null,null,"",null,null,null,""]
[null,null,"",null,null,null,""]
[null,null,"",null,null,null,""]
[null,null,"",null,null,null,""]
[null,null,"",null,null,null,""]
[null,null,"",null,null,null,""]
[null,null,"",null,null,null,""]
[null,null,"",null,null,null,""]
[null,null,"",null,null,null,""]
[null,null,{"$f":"IF(A1027=\"\",\"\",HYPERLINK(\"https://www.medewerkermonitor.nl/\" & A1027))","v":""},null,null,null,{"$f":"IF(D1027=\"\",\"\",\"Beste \"&D1027&\" \"&E1027&\",\")","v":""}]
[null,null,"",null,null,null,""]
[null,null,"",null,null,null,""]
[null,null,"",null,null,null,""]
[null,null,"",null,null,null,""]
[null,null,"",null,null,null,""]
[null,null,"",null,null,null,""]
[null,null,"",null,null,null,""]
[null,null,"",null,null,null,""]
[null,null,"",null,null,null,""]
[null,null,"",null,null,null,""]
[null,null,"",null,null,null,""]
[null,null,"",null,null,null,""]
[null,null,"",null,null,null,""]
[null,null,"",null,null,null,""]
[null,null,"",null,null,null,""]
[null,null,"",null,null,null,""]
[null,null,"",null,null,null,""]
[null,null,"",null,null,null,""]
[null,null,"",null,null,null,""]
[null,null,"",null,null,null,""]
[null,null,"",null,null,null,""]
[null,null,"",null,null,null,""]
[null,null,"",null,null,null,""]
[null,null,"",null,null,null,""]
[null,null,"",null,null,null,""]
[null,null,"",null,null,null,""]
[null,null,"",null,null,null,""]
[null,null,"",null,null,null,""]
[null,null,"",null,null,null,""]
[null,null,"",null,null,null,""]
[null,null,"",null,null,null,""]
[null,null,"",null,null,null,""]
[null,null,"",null,null,null,""]
[null,null,"",null,null,null,""]
[null,null,"",null,null,null,""]
[null,null,"",null,null,null,""]
[null,null,"",null,null,null,""]
[null,null,"",null,null,null,""]
[null,null,"",null,null,null,""]
[null,null,"",null,null,null,""]
[null,null,"",null,null,null,""]
[null,null,"",null,null,null,""]
[null,null,"",null,null,null,""]
[null,null,"",null,null,null,""]
[null,null,"",null,null,null,""]
[null,null,"",null,null,null,""]
[null,null,"",null,null,null,""]
[null,null,"",null,null,null,""]
[null,null,"",null,null,null,""]
[null,null,"",null,null,null,""]
[null,null,"",null,null,null,""]
[null,null,"",null,null,null,""]
[null,null,"",null,null,null,""]
[null,null,"",null,null,null,""]
[null,null,"",null,null,null,""]
[null,null,"",null,null,null,""]
[null,null,"",null,null,null,""]
[null,null,"",null,null,null,""]
[null,null,"",null,null,null,""]
[null,null,"",null,null,null,""]
[null,null,"",null,null,null,""]
[null,null,"",null,null,null,""]
[null,null,"",null,null,null,""]
[null,null,{"$f":"IF(A1091=\"\",\"\",HYPERLINK(\"https://www.medewerkermonitor.nl/\" & A1091))","v":""},null,null,null,{"$f":"IF(D1091=\"\",\"\",\"Beste \"&D1091&\" \"&E1091&\",\")","v":""}]
[null,null,"",null,null,null,""]
[null,null,"",null,null,null,""]
[null,null,"",null,null,null,""]
[null,null,"",null,null,null,""]
[null,null,"",null,null,null,""]
[null,null,"",null,null,null,""]
[null,null,"",null,null,null,""]
[null,null,"",null,null,null,""]
[null,null,"",null,null,null,""]
[null,null,"",null,null,null,""]
[null,null,"",null,null,null,""]
[null,null,"",null,null,null,""]
[null,null,"",null,null,null,""]
[null,null,"",null,null,null,""]
[null,null,"",null,null,null,""]
[null,null,"",null,null,null,""]
[null,null,"",null,null,null,""]
[null,null,"",null,null,null,""]
[null,null,"",null,null,null,""]
[null,null,"",null,null,null,""]
[null,null,"",null,null,null,""]
[null,null,"",null,null,null,""]
[null,null,"",null,null,null,""]
[null,null,"",null,null,null,""]
[null,null,"",null,null,null,""]
[null,null,"",null,null,null,""]
[null,null,"",null,null,null,""]
[null,null,"",null,null,null,""]
[null,null,"",null,null,null,""]
[null,null,"",null,null,null,""]
[null,null,"",null,null,null,""]
[null,null,"",null,null,null,""]
[null,null,"",null,null,null,""]
[null,null,"",null,null,null,""]
[null,null,"",null,null,null,""]
[null,null,"",null,null,null,""]
[null,null,"",null,null,null,""]
[null,null,"",null,null,null,""]
[null,null,"",null,null,null,""]
[null,null,"",null,null,null,""]
[null,null,"",null,null,null,""]
[null,null,"",null,null,null,""]
[null,null,"",null,null,null,""]
[null,null,"",null,null,null,""]
[null,null,"",null,null,null,""]
[null,null,"",null,null,null,""]
[null,null,"",null,null,null,""]
[null,null,"",null,null,null,""]
[null,null,"",null,null,null,""]
[null,null,"",null,null,null,""]
[null,null,"",null,null,null,""]
[null,null,"",null,null,null,""]
[null,null,"",null,null,null,""]
[null,null,"",null,null,null,""]
[null,null,"",null,null,null,""]
[null,null,"",null,null,null,""]
[null,null,"",null,null,null,""]
[null,null,"",null,null,null,""]
[null,null,"",null,null,null,""]
[null,null,"",null,null,null,""]
[null,null,"",null,null,null,""]
[null,null,"",null,null,null,""]
[null,null,"",null,null,null,""]
[null,null,{"$f":"IF(A1155=\"\",\"\",HYPERLINK(\"https://www.medewerkermonitor.nl/\" & A1155))","v":""},null,null,null,{"$f":"IF(D1155=\"\",\"\",\"Beste \"&D1155&\" \"&E1155&\",\")","v":""}]
[null,null,"",null,null,null,""]
[null,null,"",null,null,null,""]
[null,null,"",null,null,null,""]
[null,null,"",null,null,null,""]
[null,null,"",null,null,null,""]
[null,null,"",null,null,null,""]
[null,null,"",null,null,null,""]
[null,null,"",null,null,null,""]
[null,null,"",null,null,null,""]
[null,null,"",null,null,null,""]
[null,null,"",null,null,null,""]
[null,null,"",null,null,null,""]
[null,null,"",null,null,null,""]
[null,null,"",null,null,null,""]
[null,null,"",null,null,null,""]
[null,null,"",null,null,null,""]
[null,null,"",null,null,null,""]
[null,null,"",null,null,null,""]
[null,null,"",null,null,null,""]
[null,null,"",null,null,null,""]
[null,null,"",null,null,null,""]
[null,null,"",null,null,null,""]
[null,null,"",null,null,null,""]
[null,null,"",null,null,null,""]
[null,null,"",null,null,null,""]
[null,null,"",null,null,null,""]
[null,null,"",null,null,null,""]
[null,null,"",null,null,null,""]
[null,null,"",null,null,null,""]
[null,null,"",null,null,null,""]
[null,null,"",null,null,null,""]
[null,null,"",null,null,null,""]
[null,null,"",null,null,null,""]
[null,null,"",null,null,null,""]
[null,null,"",null,null,null,""]
[null,null,"",null,null,null,""]
[null,null,"",null,null,null,""]
[null,null,"",null,null,null,""]
[null,null,"",null,null,null,""]
[null,null,"",null,null,null,""]
[null,null,"",null,null,null,""]
[null,null,"",null,null,null,""]
[null,null,"",null,null,null,""]
[null,null,"",null,null,null,""]
[null,null,"",null,null,null,""]
[null,null,"",null,null,null,""]
[null,null,"",null,null,null,""]
[null,null,"",null,null,null,""]
[null,null,"",null,null,null,""]
[null,null,"",null,null,null,""]
[null,null,"",null,null,null,""]
[null,null,"",null,null,null,""]
[null,null,"",null,null,null,""]
[null,null,"",null,null,null,""]
[null,null,"",null,null,null,""]
[null,null,"",null,null,null,""]
[null,null,"",null,null,null,""]
[null,null,"",null,null,null,""]
[null,null,"",null,null,null,""]
[null,null,"",null,null,null,""]
[null,null,"",null,null,null,""]
[null,null,"",null,null,null,""]
[null,null,"",null,null,null,""]
[null,null,{"$f":"IF(A1219=\"\",\"\",HYPERLINK(\"https://www.medewerkermonitor.nl/\" & A1219))","v":""},null,null,null,{"$f":"IF(D1219=\"\",\"\",\"Beste \"&D1219&\" \"&E1219&\",\")","v":""}]
[null,null,"",null,null,null,""]
[null,null,"",null,null,null,""]
[null,null,"",null,null,null,""]
[null,null,"",null,null,null,""]
[null,null,"",null,null,null,""]
[null,null,"",null,null,null,""]
[null,null,"",null,null,null,""]
[null,null,"",null,null,null,""]
[null,null,"",null,null,null,""]
[null,null,"",null,null,null,""]
[null,null,"",null,null,null,""]
[null,null,"",null,null,null,""]
[null,null,"",null,null,null,""]
[null,null,"",null,null,null,""]
[null,null,"",null,null,null,""]
[null,null,"",null,null,null,""]
[null,null,"",null,null,null,""]
[null,null,"",null,null,null,""]
[null,null,"",null,null,null,""]
[null,null,"",null,null,null,""]
[null,null,"",null,null,null,""]
[null,null,"",null,null,null,""]
[null,null,"",null,null,null,""]
[null,null,"",null,null,null,""]
[null,null,"",null,null,null,""]
[null,null,"",null,null,null,""]
[null,null,"",null,null,null,""]
[null,null,"",null,null,null,""]
[null,null,"",null,null,null,""]
[null,null,"",null,null,null,""]
[null,null,"",null,null,null,""]
[null,null,"",null,null,null,""]
[null,null,"",null,null,null,""]
[null,null,"",null,null,null,""]
[null,null,"",null,null,null,""]
[null,null,"",null,null,null,""]
[null,null,"",null,null,null,""]
[null,null,"",null,null,null,""]
[null,null,"",null,null,null,""]
[null,null,"",null,null,null,""]
[null,null,"",null,null,null,""]
[null,null,"",null,null,null,""]
[null,null,"",null,null,null,""]
[null,null,"",null,null,null,""]
[null,null,"",null,null,null,""]
[null,null,"",null,null,null,""]
[null,null,"",null,null,null,""]
[null,null,"",null,null,null,""]
[null,null,"",null,null,null,""]
[null,null,"",null,null,null,""]
[null,null,"",null,null,null,""]
[null,null,"",null,null,null,""]
[null,null,"",null,null,null,""]
[null,null,"",null,null,null,""]
[null,null,"",null,null,null,""]
[null,null,"",null,null,null,""]
[null,null,"",null,null,null,""]
[null,null,"",null,null,null,""]
[null,null,"",null,null,null,""]
[null,null,"",null,null,null,""]
[null,null,"",null,null,null,""]
[null,null,"",null,null,null,""]
[null,null,"",null,null,null,""]
[null,null,{"$f":"IF(A1283=\"\",\"\",HYPERLINK(\"https://www.medewerkermonitor.nl/\" & A1283))","v":""},null,null,null,{"$f":"IF(D1283=\"\",\"\",\"Beste \"&D1283&\" \"&E1283&\",\")","v":""}]
[null,null,"",null,null,null,""]
[null,null,"",null,null,null,""]
[null,null,"",null,null,null,""]
[null,null,"",null,null,null,""]
[null,null,"",null,null,null,""]
[null,null,"",null,null,null,""]
[null,null,"",null,null,null,""]
[null,null,"",null,null,null,""]
[null,null,"",null,null,null,""]
[null,null,"",null,null,null,""]
[null,null,"",null,null,null,""]
[null,null,"",null,null,null,""]
[null,null,"",null,null,null,""]
[null,null,"",null,null,null,""]
[null,null,"",null,null,null,""]
[null,null,"",null,null,null,""]
[null,null,"",null,null,null,""]
[null,null,"",null,null,null,""]
[null,null,"",null,null,null,""]
[null,null,"",null,null,null,""]
[null,null,"",null,null,null,""]
[null,null,"",null,null,null,""]
[null,null,"",null,null,null,""]
[null,null,"",null,null,null,""]
[null,null,"",null,null,null,""]
[null,null,"",null,null,null,""]
[null,null,"",null,null,null,""]
[null,null,"",null,null,null,""]
[null,null,"",null,null,null,""]
[null,null,"",null,null,null,""]
[null,null,"",null,null,null,""]
[null,null,"",null,null,null,""]
[null,null,"",null,null,null,""]
[null,null,"",null,null,null,""]
[null,null,"",null,null,null,""]
[null,null,"",null,null,null,""]
[null,null,"",null,null,null,""]
[null,null,"",null,null,null,""]
[null,null,"",null,null,null,""]
[null,null,"",null,null,null,""]
[null,null,"",null,null,null,""]
[null,null,"",null,null,null,""]
[null,null,"",null,null,null,""]
[null,null,"",null,null,null,""]
[null,null,"",null,null,null,""]
[null,null,"",null,null,null,""]
[null,null,"",null,null,null,""]
[null,null,"",null,null,null,""]
[null,null,"",null,null,null,""]
[null,null,"",null,null,null,""]
[null,null,"",null,null,null,""]
[null,null,"",null,null,null,""]
[null,null,"",null,null,null,""]
[null,null,"",null,null,null,""]
[null,null,"",null,null,null,""]
[null,null,"",null,null,null,""]
[null,null,"",null,null,null,""]
[null,null,"",null,null,null,""]
[null,null,"",null,null,null,""]
[null,null,"",null,null,null,""]
[null,null,"",null,null,null,""]
[null,null,"",null,null,null,""]
[null,null,"",null,null,null,""]
[null,null,{"$f":"IF(A1347=\"\",\"\",HYPERLINK(\"https://www.medewerkermonitor.nl/\" & A1347))","v":""},null,null,null,{"$f":"IF(D1347=\"\",\"\",\"Beste \"&D1347&\" \"&E1347&\",\")","v":""}]
[null,null,"",null,null,null,""]
[null,null,"",null,null,null,""]
[null,null,"",null,null,null,""]
[null,null,"",null,null,null,""]
[null,null,"",null,null,null,""]
[null,null,"",null,null,null,""]
[null,null,"",null,null,null,""]
[null,null,"",null,null,null,""]
[null,null,"",null,null,null,""]
[null,null,"",null,null,null,""]
[null,null,"",null,null,null,""]
[null,null,"",null,null,null,""]
[null,null,"",null,null,null,""]
[null,null,"",null,null,null,""]
[null,null,"",null,null,null,""]
[null,null,"",null,null,null,""]
[null,null,"",null,null,null,""]
[null,null,"",null,null,null,""]
[null,null,"",null,null,null,""]
[null,null,"",null,null,null,""]
[null,null,"",null,null,null,""]
[null,null,"",null,null,null,""]
[null,null,"",null,null,null,""]
[null,null,"",null,null,null,""]
[null,null,"",null,null,null,""]
[null,null,"",null,null,null,""]
[null,null,"",null,null,null,""]
[null,null,"",null,null,null,""]
[null,null,"",null,null,null,""]
[null,null,"",null,null,null,""]
[null,null,"",null,null,null,""]
[null,null,"",null,null,null,""]
[null,null,"",null,null,null,""]
[null,null,"",null,null,null,""]
[null,null,"",null,null,null,""]
[null,null,"",null,null,null,""]
[null,null,"",null,null,null,""]
[null,null,"",null,null,null,""]
[null,null,"",null,null,null,""]
[null,null,"",null,null,null,""]
[null,null,"",null,null,null,""]
[null,null,"",null,null,null,""]
[null,null,"",null,null,null,""]
[null,null,"",null,null,null,""]
[null,null,"",null,null,null,""]
[null,null,"",null,null,null,""]
[null,null,"",null,null,null,""]
[null,null,"",null,null,null,""]
[null,null,"",null,null,null,""]
[null,null,"",null,null,null,""]
[null,null,"",null,null,null,""]
[null,null,"",null,null,null,""]
[null,null,"",null,null,null,""]
[null,null,"",null,null,null,""]
[null,null,"",null,null,null,""]
[null,null,"",null,null,null,""]
[null,null,"",null,null,null,""]
[null,null,"",null,null,null,""]
[null,null,"",null,null,null,""]
[null,null,"",null,null,null,""]
[null,null,"",null,null,null,""]
[null,null,"",null,null,null,""]
[null,null,"",null,null,null,""]
[null,null,{"$f":"IF(A1411=\"\",\"\",HYPERLINK(\"https://www.medewerkermonitor.nl/\" & A1411))","v":""},null,null,null,{"$f":"IF(D1411=\"\",\"\",\"Beste \"&D1411&\" \"&E1411&\",\")","v":""}]
[null,null,"",null,null,null,""]
[null,null,"",null,null,null,""]
[null,null,"",null,null,null,""]
[null,null,"",null,null,null,""]
[null,null,"",null,null,null,""]
[null,null,"",null,null,null,""]
[null,null,"",null,null,null,""]
[null,null,"",null,null,null,""]
[null,null,"",null,null,null,""]
[null,null,"",null,null,null,""]
[null,null,"",null,null,null,""]
[null,null,"",null,null,null,""]
[null,null,"",null,null,null,""]
[null,null,"",null,null,null,""]
[null,null,"",null,null,null,""]
[null,null,"",null,null,null,""]
[null,null,"",null,null,null,""]
[null,null,"",null,null,null,""]
[null,null,"",null,null,null,""]
[null,null,"",null,null,null,""]
[null,null,"",null,null,null,""]
[null,null,"",null,null,null,""]
[null,null,"",null,null,null,""]
[null,null,"",null,null,null,""]
[null,null,"",null,null,null,""]
[null,null,"",null,null,null,""]
[null,null,"",null,null,null,""]
[null,null,"",null,null,null,""]
[null,null,"",null,null,null,""]
[null,null,"",null,null,null,""]
[null,null,"",null,null,null,""]
[null,null,"",null,null,null,""]
[null,null,"",null,null,null,""]
[null,null,"",null,null,null,""]
[null,null,"",null,null,null,""]
[null,null,"",null,null,null,""]
[null,null,"",null,null,null,""]
[null,null,"",null,null,null,""]
[null,null,"",null,null,null,""]
[null,null,"",null,null,null,""]
[null,null,"",null,null,null,""]
[null,null,"",null,null,null,""]
[null,null,"",null,null,null,""]
[null,null,"",null,null,null,""]
[null,null,"",null,null,null,""]
[null,null,"",null,null,null,""]
[null,null,"",null,null,null,""]
[null,null,"",null,null,null,""]
[null,null,"",null,null,null,""]
[null,null,"",null,null,null,""]
[null,null,"",null,null,null,""]
[null,null,"",null,null,null,""]
[null,null,"",null,null,null,""]
[null,null,"",null,null,null,""]
[null,null,"",null,null,null,""]
[null,null,"",null,null,null,""]
[null,null,"",null,null,null,""]
[null,null,"",null,null,null,""]
[null,null,"",null,null,null,""]
[null,null,"",null,null,null,""]
[null,null,"",null,null,null,""]
[null,null,"",null,null,null,""]
[null,null,"",null,null,null,""]
[null,null,{"$f":"IF(A1475=\"\",\"\",HYPERLINK(\"https://www.medewerkermonitor.nl/\" & A1475))","v":""},null,null,null,{"$f":"IF(D1475=\"\",\"\",\"Beste \"&D1475&\" \"&E1475&\",\")","v":""}]
[null,null,"",null,null,null,""]
[null,null,"",null,null,null,""]
[null,null,"",null,null,null,""]
[null,null,"",null,null,null,""]
[null,null,"",null,null,null,""]
[null,null,"",null,null,null,""]
[null,null,"",null,null,null,""]
[null,null,"",null,null,null,""]
[null,null,"",null,null,null,""]
[null,null,"",null,null,null,""]
[null,null,"",null,null,null,""]
[null,null,"",null,null,null,""]
[null,null,"",null,null,null,""]
[null,null,"",null,null,null,""]
[null,null,"",null,null,null,""]
[null,null,"",null,null,null,""]
[null,null,"",null,null,null,""]
[null,null,"",null,null,null,""]
[null,null,"",null,null,null,""]
[null,null,"",null,null,null,""]
[null,null,"",null,null,null,""]
[null,null,"",null,null,null,""]
[null,null,"",null,null,null,""]
[null,null,"",null,null,null,""]
[null,null,"",null,null,null,""]
[null,null,"",null,null,null,""]
[null,null,"",null,null,null,""]
[null,null,"",null,null,null,""]
[null,null,"",null,null,null,""]
[null,null,"",null,null,null,""]
[null,null,"",null,null,null,""]
[null,null,"",null,null,null,""]
[null,null,"",null,null,null,""]
[null,null,"",null,null,null,""]
[null,null,"",null,null,null,""]
[null,null,"",null,null,null,""]
[null,null,"",null,null,null,""]
[null,null,"",null,null,null,""]
[null,null,"",null,null,null,""]
[null,null,"",null,null,null,""]
[null,null,"",null,null,null,""]
[null,null,"",null,null,null,""]
[null,null,"",null,null,null,""]
[null,null,"",null,null,null,""]
[null,null,"",null,null,null,""]
[null,null,"",null,null,null,""]
[null,null,"",null,null,null,""]
[null,null,"",null,null,null,""]
[null,null,"",null,null,null,""]
[null,null,"",null,null,null,""]
[null,null,"",null,null,null,""]
[null,null,"",null,null,null,""]
[null,null,"",null,null,null,""]
[null,null,"",null,null,null,""]
[null,null,"",null,null,null,""]
[null,null,"",null,null,null,""]
[null,null,"",null,null,null,""]
[null,null,"",null,null,null,""]
[null,null,"",null,null,null,""]
[null,null,"",null,null,null,""]
[null,null,"",null,null,null,""]
[null,null,"",null,null,null,""]
[null,null,"",null,null,null,""]
[null,null,{"$f":"IF(A1539=\"\",\"\",HYPERLINK(\"https://www.medewerkermonitor.nl/\" & A1539))","v":""},null,null,null,{"$f":"IF(D1539=\"\",\"\",\"Beste \"&D1539&\" \"&E1539&\",\")","v":""}]
[null,null,"",null,null,null,""]
[null,null,"",null,null,null,""]
[null,null,"",null,null,null,""]
[null,null,"",null,null,null,""]
[null,null,"",null,null,null,""]
[null,null,"",null,null,null,""]
[null,null,"",null,null,null,""]
[null,null,"",null,null,null,""]
[null,null,"",null,null,null,""]
[null,null,"",null,null,null,""]
[null,null,"",null,null,null,""]
[null,null,"",null,null,null,""]
[null,null,"",null,null,null,""]
[null,null,"",null,null,null,""]
[null,null,"",null,null,null,""]
[null,null,"",null,null,null,""]
[null,null,"",null,null,null,""]
[null,null,"",null,null,null,""]
[null,null,"",null,null,null,""]
[null,null,"",null,null,null,""]
[null,null,"",null,null,null,""]
[null,null,"",null,null,null,""]
[null,null,"",null,null,null,""]
[null,null,"",null,null,null,""]
[null,null,"",null,null,null,""]
[null,null,"",null,null,null,""]
[null,null,"",null,null,null,""]
[null,null,"",null,null,null,""]
[null,null,"",null,null,null,""]
[null,null,"",null,null,null,""]
[null,null,"",null,null,null,""]
[null,null,"",null,null,null,""]
[null,null,"",null,null,null,""]
[null,null,"",null,null,null,""]
[null,null,"",null,null,null,""]
[null,null,"",null,null,null,""]
[null,null,"",null,null,null,""]
[null,null,"",null,null,null,""]
[null,null,"",null,null,null,""]
[null,null,"",null,null,null,""]
[null,null,"",null,null,null,""]
[null,null,"",null,null,null,""]
[null,null,"",null,null,null,""]
[null,null,"",null,null,null,""]
[null,null,"",null,null,null,""]
[null,null,"",null,null,null,""]
[null,null,"",null,null,null,""]
[null,null,"",null,null,null,""]
[null,null,"",null,null,null,""]
[null,null,"",null,null,null,""]
[null,null,"",null,null,null,""]
[null,null,"",null,null,null,""]
[null,null,"",null,null,null,""]
[null,null,"",null,null,null,""]
[null,null,"",null,null,null,""]
[null,null,"",null,null,null,""]
[null,null,"",null,null,null,""]
[null,null,"",null,null,null,""]
[null,null,"",null,null,null,""]
[null,null,"",null,null,null,""]
[null,null,"",null,null,null,""]
[null,null,"",null,null,null,""]
[null,null,"",null,null,null,""]
[null,null,{"$f":"IF(A1603=\"\",\"\",HYPERLINK(\"https://www.medewerkermonitor.nl/\" & A1603))","v":""},null,null,null,{"$f":"IF(D1603=\"\",\"\",\"Beste \"&D1603&\" \"&E1603&\",\")","v":""}]
[null,null,"",null,null,null,""]
[null,null,"",null,null,null,""]
[null,null,"",null,null,null,""]
[null,null,"",null,null,null,""]
[null,null,"",null,null,null,""]
[null,null,"",null,null,null,""]
[null,null,"",null,null,null,""]
[null,null,"",null,null,null,""]
[null,null,"",null,null,null,""]
[null,null,"",null,null,null,""]
[null,null,"",null,null,null,""]
[null,null,"",null,null,null,""]
[null,null,"",null,null,null,""]
[null,null,"",null,null,null,""]
[null,null,"",null,null,null,""]
[null,null,"",null,null,null,""]
[null,null,"",null,null,null,""]
[null,null,"",null,null,null,""]
[null,null,"",null,null,null,""]
[null,null,"",null,null,null,""]
[null,null,"",null,null,null,""]
[null,null,"",null,null,null,""]
[null,null,"",null,null,null,""]
[null,null,"",null,null,null,""]
[null,null,"",null,null,null,""]
[null,null,"",null,null,null,""]
[null,null,"",null,null,null,""]
[null,null,"",null,null,null,""]
[null,null,"",null,null,null,""]
[null,null,"",null,null,null,""]
[null,null,"",null,null,null,""]
[null,null,"",null,null,null,""]
[null,null,"",null,null,null,""]
[null,null,"",null,null,null,""]
[null,null,"",null,null,null,""]
[null,null,"",null,null,null,""]
[null,null,"",null,null,null,""]
[null,null,"",null,null,null,""]
[null,null,"",null,null,null,""]
[null,null,"",null,null,null,""]
[null,null,"",null,null,null,""]
[null,null,"",null,null,null,""]
[null,null,"",null,null,null,""]
[null,null,"",null,null,null,""]
[null,null,"",null,null,null,""]
[null,null,"",null,null,null,""]
[null,null,"",null,null,null,""]
[null,null,"",null,null,null,""]
[null,null,"",null,null,null,""]
[null,null,"",null,null,null,""]
[null,null,"",null,null,null,""]
[null,null,"",null,null,null,""]
[null,null,"",null,null,null,""]
[null,null,"",null,null,null,""]
[null,null,"",null,null,null,""]
[null,null,"",null,null,null,""]
[null,null,"",null,null,null,""]
[null,null,"",null,null,null,""]
[null,null,"",null,null,null,""]
[null,null,"",null,null,null,""]
[null,null,"",null,null,null,""]
[null,null,"",null,null,null,""]
[null,null,"",null,null,null,""]
[null,null,{"$f":"IF(A1667=\"\",\"\",HYPERLINK(\"https://www.medewerkermonitor.nl/\" & A1667))","v":""},null,null,null,{"$f":"IF(D1667=\"\",\"\",\"Beste \"&D1667&\" \"&E1667&\",\")","v":""}]
[null,null,"",null,null,null,""]
[null,null,"",null,null,null,""]
[null,null,"",null,null,null,""]
[null,null,"",null,null,null,""]
[null,null,"",null,null,null,""]
[null,null,"",null,null,null,""]
[null,null,"",null,null,null,""]
[null,null,"",null,null,null,""]
[null,null,"",null,null,null,""]
[null,null,"",null,null,null,""]
[null,null,"",null,null,null,""]
[null,null,"",null,null,null,""]
[null,null,"",null,null,null,""]
[null,null,"",null,null,null,""]
[null,null,"",null,null,null,""]
[null,null,"",null,null,null,""]
[null,null,"",null,null,null,""]
[null,null,"",null,null,null,""]
[null,null,"",null,null,null,""]
[null,null,"",null,null,null,""]
[null,null,"",null,null,null,""]
[null,null,"",null,null,null,""]
[null,null,"",null,null,null,""]
[null,null,"",null,null,null,""]
[null,null,"",null,null,null,""]
[null,null,"",null,null,null,""]
[null,null,"",null,null,null,""]
[null,null,"",null,null,null,""]
[null,null,"",null,null,null,""]
[null,null,"",null,null,null,""]
[null,null,"",null,null,null,""]
[null,null,"",null,null,null,""]
[null,null,"",null,null,null,""]
[null,null,"",null,null,null,""]
[null,null,"",null,null,null,""]
[null,null,"",null,null,null,""]
[null,null,"",null,null,null,""]
[null,null,"",null,null,null,""]
[null,null,"",null,null,null,""]
[null,null,"",null,null,null,""]
[null,null,"",null,null,null,""]
[null,null,"",null,null,null,""]
[null,null,"",null,null,null,""]
[null,null,"",null,null,null,""]
[null,null,"",null,null,null,""]
[null,null,"",null,null,null,""]
[null,null,"",null,null,null,""]
[null,null,"",null,null,null,""]
[null,null,"",null,null,null,""]
[null,null,"",null,null,null,""]
[null,null,"",null,null,null,""]
[null,null,"",null,null,null,""]
[null,null,"",null,null,null,""]
[null,null,"",null,null,null,""]
[null,null,"",null,null,null,""]
[null,null,"",null,null,null,""]
[null,null,"",null,null,null,""]
[null,null,"",null,null,null,""]
[null,null,"",null,null,null,""]
[null,null,"",null,null,null,""]
[null,null,"",null,null,null,""]
[null,null,"",null,null,null,""]
[null,null,"",null,null,null,""]
[null,null,{"$f":"IF(A1731=\"\",\"\",HYPERLINK(\"https://www.medewerkermonitor.nl/\" & A1731))","v":""},null,null,null,{"$f":"IF(D1731=\"\",\"\",\"Beste \"&D1731&\" \"&E1731&\",\")","v":""}]
[null,null,"",null,null,null,""]
[null,null,"",null,null,null,""]
[null,null,"",null,null,null,""]
[null,null,"",null,null,null,""]
[null,null,"",null,null,null,""]
[null,null,"",null,null,null,""]
[null,null,"",null,null,null,""]
[null,null,"",null,null,null,""]
[null,null,"",null,null,null,""]
[null,null,"",null,null,null,""]
[null,null,"",null,null,null,""]
[null,null,"",null,null,null,""]
[null,null,"",null,null,null,""]
[null,null,"",null,null,null,""]
[null,null,"",null,null,null,""]
[null,null,"",null,null,null,""]
[null,null,"",null,null,null,""]
[null,null,"",null,null,null,""]
[null,null,"",null,null,null,""]
[null,null,"",null,null,null,""]
[null,null,"",null,null,null,""]
[null,null,"",null,null,null,""]
[null,null,"",null,null,null,""]
[null,null,"",null,null,null,""]
[null,null,"",null,null,null,""]
[null,null,"",null,null,null,""]
[null,null,"",null,null,null,""]
[null,null,"",null,null,null,""]
[null,null,"",null,null,null,""]
[null,null,"",null,null,null,""]
[null,null,"",null,null,null,""]
[null,null,"",null,null,null,""]
[null,null,"",null,null,null,""]
[null,null,"",null,null,null,""]
[null,null,"",null,null,null,""]
[null,null,"",null,null,null,""]
[null,null,"",null,null,null,""]
[null,null,"",null,null,null,""]
[null,null,"",null,null,null,""]
[null,null,"",null,null,null,""]
[null,null,"",null,null,null,""]
[null,null,"",null,null,null,""]
[null,null,"",null,null,null,""]
[null,null,"",null,null,null,""]
[null,null,"",null,null,null,""]
[null,null,"",null,null,null,""]
[null,null,"",null,null,null,""]
[null,null,"",null,null,null,""]
[null,null,"",null,null,null,""]
[null,null,"",null,null,null,""]
[null,null,"",null,null,null,""]
[null,null,"",null,null,null,""]
[null,null,"",null,null,null,""]
[null,null,"",null,null,null,""]
[null,null,"",null,null,null,""]
[null,null,"",null,null,null,""]
[null,null,"",null,null,null,""]
[null,null,"",null,null,null,""]
[null,null,"",null,null,null,""]
[null,null,"",null,null,null,""]
[null,null,"",null,null,null,""]
[null,null,"",null,null,null,""]
[null,null,"",null,null,null,""]
[null,null,{"$f":"IF(A1795=\"\",\"\",HYPERLINK(\"https://www.medewerkermonitor.nl/\" & A1795))","v":""},null,null,null,{"$f":"IF(D1795=\"\",\"\",\"Beste \"&D1795&\" \"&E1795&\",\")","v":""}]
[null,null,"",null,null,null,""]
[null,null,"",null,null,null,""]
[null,null,"",null,null,null,""]
[null,null,"",null,null,null,""]
[null,null,"",null,null,null,""]
[null,null,"",null,null,null,""]
[null,null,"",null,null,null,""]
[null,null,"",null,null,null,""]
[null,null,"",null,null,null,""]
[null,null,"",null,null,null,""]
[null,null,"",null,null,null,""]
[null,null,"",null,null,null,""]
[null,null,"",null,null,null,""]
[null,null,"",null,null,null,""]
[null,null,"",null,null,null,""]
[null,null,"",null,null,null,""]
[null,null,"",null,null,null,""]
[null,null,"",null,null,null,""]
[null,null,"",null,null,null,""]
[null,null,"",null,null,null,""]
[null,null,"",null,null,null,""]
[null,null,"",null,null,null,""]
[null,null,"",null,null,null,""]
[null,null,"",null,null,null,""]
[null,null,"",null,null,null,""]
[null,null,"",null,null,null,""]
[null,null,"",null,null,null,""]
[null,null,"",null,null,null,""]
[null,null,"",null,null,null,""]
[null,null,"",null,null,null,""]
[null,null,"",null,null,null,""]
[null,null,"",null,null,null,""]
[null,null,"",null,null,null,""]
[null,null,"",null,null,null,""]
[null,null,"",null,null,null,""]
[null,null,"",null,null,null,""]
[null,null,"",null,null,null,""]
[null,null,"",null,null,null,""]
[null,null,"",null,null,null,""]
[null,null,"",null,null,null,""]
[null,null,"",null,null,null,""]
[null,null,"",null,null,null,""]
[null,null,"",null,null,null,""]
[null,null,"",null,null,null,""]
[null,null,"",null,null,null,""]
[null,null,"",null,null,null,""]
[null,null,"",null,null,null,""]
[null,null,"",null,null,null,""]
[null,null,"",null,null,null,""]
[null,null,"",null,null,null,""]
[null,null,"",null,null,null,""]
[null,null,"",null,null,null,""]
[null,null,"",null,null,null,""]
[null,null,"",null,null,null,""]
[null,null,"",null,null,null,""]
[null,null,"",null,null,null,""]
[null,null,"",null,null,null,""]
[null,null,"",null,null,null,""]
[null,null,"",null,null,null,""]
[null,null,"",null,null,null,""]
[null,null,"",null,null,null,""]
[null,null,"",null,null,null,""]
[null,null,"",null,null,null,""]
[null,null,{"$f":"IF(A1859=\"\",\"\",HYPERLINK(\"https://www.medewerkermonitor.nl/\" & A1859))","v":""},null,null,null,{"$f":"IF(D1859=\"\",\"\",\"Beste \"&D1859&\" \"&E1859&\",\")","v":""}]
[null,null,"",null,null,null,""]
[null,null,"",null,null,null,""]
[null,null,"",null,null,null,""]
[null,null,"",null,null,null,""]
[null,null,"",null,null,null,""]
[null,null,"",null,null,null,""]
[null,null,"",null,null,null,""]
[null,null,"",null,null,null,""]
[null,null,"",null,null,null,""]
[null,null,"",null,null,null,""]
[null,null,"",null,null,null,""]
[null,null,"",null,null,null,""]
[null,null,"",null,null,null,""]
[null,null,"",null,null,null,""]
[null,null,"",null,null,null,""]
[null,null,"",null,null,null,""]
[null,null,"",null,null,null,""]
[null,null,"",null,null,null,""]
[null,null,"",null,null,null,""]
[null,null,"",null,null,null,""]
[null,null,"",null,null,null,""]
[null,null,"",null,null,null,""]
[null,null,"",null,null,null,""]
[null,null,"",null,null,null,""]
[null,null,"",null,null,null,""]
[null,null,"",null,null,null,""]
[null,null,"",null,null,null,""]
[null,null,"",null,null,null,""]
[null,null,"",null,null,null,""]
[null,null,"",null,null,null,""]
[null,null,"",null,null,null,""]
[null,null,"",null,null,null,""]
[null,null,"",null,null,null,""]
[null,null,"",null,null,null,""]
[null,null,"",null,null,null,""]
[null,null,"",null,null,null,""]
[null,null,"",null,null,null,""]
[null,null,"",null,null,null,""]
[null,null,"",null,null,null,""]
[null,null,"",null,null,null,""]
[null,null,"",null,null,null,""]
[null,null,"",null,null,null,""]
[null,null,"",null,null,null,""]
[null,null,"",null,null,null,""]
[null,null,"",null,null,null,""]
[null,null,"",null,null,null,""]
[null,null,"",null,null,null,""]
[null,null,"",null,null,null,""]
[null,null,"",null,null,null,""]
[null,null,"",null,null,null,""]
[null,null,"",null,null,null,""]
[null,null,"",null,null,null,""]
[null,null,"",null,null,null,""]
[null,null,"",null,null,null,""]
[null,null,"",null,null,null,""]
[null,null,"",null,null,null,""]
[null,null,"",null,null,null,""]
[null,null,"",null,null,null,""]
[null,null,"",null,null,null,""]
[null,null,"",null,null,null,""]
[null,null,"",null,null,null,""]
[null,null,"",null,null,null,""]
[null,null,"",null,null,null,""]
[null,null,{"$f":"IF(A1923=\"\",\"\",HYPERLINK(\"https://www.medewerkermonitor.nl/\" & A1923))","v":""},null,null,null,{"$f":"IF(D1923=\"\",\"\",\"Beste \"&D1923&\" \"&E1923&\",\")","v":""}]
[null,null,"",null,null,null,""]
[null,null,"",null,null,null,""]
[null,null,"",null,null,null,""]
[null,null,"",null,null,null,""]
[null,null,"",null,null,null,""]
[null,null,"",null,null,null,""]
[null,null,"",null,null,null,""]
[null,null,"",null,null,null,""]
[null,null,"",null,null,null,""]
[null,null,"",null,null,null,""]
[null,null,"",null,null,null,""]
[null,null,"",null,null,null,""]
[null,null,"",null,null,null,""]
[null,null,"",null,null,null,""]
[null,null,"",null,null,null,""]
[null,null,"",null,null,null,""]
[null,null,"",null,null,null,""]
[null,null,"",null,null,null,""]
[null,null,"",null,null,null,""]
[null,null,"",null,null,null,""]
[null,null,"",null,null,null,""]
[null,null,"",null,null,null,""]
[null,null,"",null,null,null,""]
[null,null,"",null,null,null,""]
[null,null,"",null,null,null,""]
[null,null,"",null,null,null,""]
[null,null,"",null,null,null,""]
[null,null,"",null,null,null,""]
[null,null,"",null,null,null,""]
[null,null,"",null,null,null,""]
[null,null,"",null,null,null,""]
[null,null,"",null,null,null,""]
[null,null,"",null,null,null,""]
[null,null,"",null,null,null,""]
[null,null,"",null,null,null,""]
[null,null,"",null,null,null,""]
[null,null,"",null,null,null,""]
[null,null,"",null,null,null,""]
[null,null,"",null,null,null,""]
[null,null,"",null,null,null,""]
[null,null,"",null,null,null,""]
[null,null,"",null,null,null,""]
[null,null,"",null,null,null,""]
[null,null,"",null,null,null,""]
[null,null,"",null,null,null,""]
[null,null,"",null,null,null,""]
[null,null,"",null,null,null,""]
[null,null,"",null,null,null,""]
[null,null,"",null,null,null,""]
[null,null,"",null,null,null,""]
[null,null,"",null,null,null,""]
[null,null,"",null,null,null,""]
[null,null,"",null,null,null,""]
[null,null,"",null,null,null,""]
[null,null,"",null,null,null,""]
[null,null,"",null,null,null,""]
[null,null,"",null,null,null,""]
[null,null,"",null,null,null,""]
[null,null,"",null,null,null,""]
[null,null,"",null,null,null,""]
[null,null,"",null,null,null,""]
[null,null,"",null,null,null,""]
[null,null,"",null,null,null,""]
[null,null,{"$f":"IF(A1987=\"\",\"\",HYPERLINK(\"https://www.medewerkermonitor.nl/\" & A1987))","v":""},null,null,null,{"$f":"IF(D1987=\"\",\"\",\"Beste \"&D1987&\" \"&E1987&\",\")","v":""}]
[null,null,"",null,null,null,""]
[null,null,"",null,null,null,""]
[null,null,"",null,null,null,""]
[null,null,"",null,null,null,""]
[null,null,"",null,null,null,""]
[null,null,"",null,null,null,""]
[null,null,"",null,null,null,""]
[null,null,"",null,null,null,""]
[null,null,"",null,null,null,""]
[null,null,"",null,null,null,""]
[null,null,"",null,null,null,""]
[null,null,"",null,null,null,""]
[null,null,"",null,null,null,""]
[null,null,"",null,null,null,""]
[null,null,"",null,null,null,""]
[null,null,"",null,null,null,""]
[null,null,"",null,null,null,""]
[null,null,"",null,null,null,""]
[null,null,"",null,null,null,""]
[null,null,"",null,null,null,""]
[null,null,"",null,null,null,""]
[null,null,"",null,null,null,""]
[null,null,"",null,null,null,""]
[null,null,"",null,null,null,""]
[null,null,"",null,null,null,""]
[null,null,"",null,null,null,""]
[null,null,"",null,null,null,""]
[null,null,"",null,null,null,""]
[null,null,"",null,null,null,""]
[null,null,"",null,null,null,""]
[null,null,"",null,null,null,""]
[null,null,"",null,null,null,""]
[null,null,"",null,null,null,""]
[null,null,"",null,null,null,""]
[null,null,"",null,null,null,""]
[null,null,"",null,null,null,""]
[null,null,"",null,null,null,""]
[null,null,"",null,null,null,""]
[null,null,"",null,null,null,""]
[null,null,"",null,null,null,""]
[null,null,"",null,null,null,""]
[null,null,"",null,null,null,""]
[null,null,"",null,null,null,""]
[null,null,"",null,null,null,""]
[null,null,"",null,null,null,""]
[null,null,"",null,null,null,""]
[null,null,"",null,null,null,""]
[null,null,"",null,null,null,""]
[null,null,"",null,null,null,""]
[null,null,"",null,null,null,""]
[null,null,"",null,null,null,""]
[null,null,"",null,null,null,""]
[null,null,"",null,null,null,""]
[null,null,"",null,null,null,""]
[null,null,"",null,null,null,""]
[null,null,"",null,null,null,""]
[null,null,"",null,null,null,""]
[null,null,"",null,null,null,""]
[null,null,"",null,null,null,""]
[null,null,"",null,null,null,""]
[null,null,"",null,null,null,""]
[null,null,"",null,null,null,""]
[null,null,"",null,null,null,""]
[null,null,"",null,null,null,""]
[null,null,"",null,null,null,""]
[null,null,"",null,null,null,""]
[null,null,"",null,null,null,""]
[null,null,"",null,null,null,""]
[null,null,"",null,null,null,""]
[null,null,"",null,null,null,""]
[null,null,"",null,null,null,""]
[null,null,"",null,null,null,""]
[null,null,"",null,null,null,""]
[null,null,"",null,null,null,""]
[null,null,"",null,null,null,""]
[null,null,"",null,null,null,""]
[null,null,"",null,null,null,""]
[null,null,"",null,null,null,""]
[null,null,"",null,null,null,""]
[null,null,"",null,null,null,""]
[null,null,"",null,null,null,""]
[null,null,"",null,null,null,""]
[null,null,"",null,null,null,""]
[null,null,"",null,null,null,""]
[null,null,"",null,null,null,""]
[null,null,"",null,null,null,""]
[null,null,"",null,null,null,""]
[null,null,"",null,null,null,""]
[null,null,"",null,null,null,""]
[null,null,"",null,null,null,""]
[null,null,"",null,null,null,""]
[null,null,"",null,null,null,""]
[null,null,"",null,null,null,""]
[null,null,"",null,null,null,""]
[null,null,"",null,null,null,""]
[null,null,{"$f":"IF(A3139=\"\",\"\",HYPERLINK(\"https://www.medewerkermonitor.nl/\" & A3139))","v":""},null,null,null,{"$f":"IF(D3139=\"\",\"\",\"Beste \"&D3139&\" \"&E3139&\",\")","v":""}]
[null,null,"",null,null,null,""]
[null,null,"",null,null,null,""]
[null,null,"",null,null,null,""]
[null,null,"",null,null,null,""]
[null,null,"",null,null,null,""]
[null,null,"",null,null,null,""]
[null,null,"",null,null,null,""]
[null,null,"",null,null,null,""]
[null,null,"",null,null,null,""]
[null,null,{"$f":"IF(A3267=\"\",\"\",HYPERLINK(\"https://www.medewerkermonitor.nl/\" & A3267))","v":""},null,null,null,{"$f":"IF(D3267=\"\",\"\",\"Beste \"&D3267&\" \"&E3267&\",\")","v":""}]
[null,null,"",null,null,null,""]
[null,null,"",null,null,null,""]
[null,null,"",null,null,null,""]
[null,null,"",null,null,null,""]
[null,null,"",null,null,null,""]
[null,null,"",null,null,null,""]
[null,null,"",null,null,null,""]
[null,null,"",null,null,null,""]
[null,null,"",null,null,null,""]
[null,null,"",null,null,null,""]
[null,null,"",null,null,null,""]
[null,null,"",null,null,null,""]
[null,null,"",null,null,null,""]
[null,null,{"$f":"IF(A3459=\"\",\"\",HYPERLINK(\"https://www.medewerkermonitor.nl/\" & A3459))","v":""},null,null,null,{"$f":"IF(D3459=\"\",\"\",\"Beste \"&D3459&\" \"&E3459&\",\")","v":""}]
[null,null,"",null,null,null,""]
[null,null,"",null,null,null,""]
[null,null,"",null,null,null,""]
[null,null,"",null,null,null,""]
[null,null,"",null,null,null,""]
[null,null,"",null,null,null,""]
[null,null,"",null,null,null,""]
[null,null,"",null,null,null,""]
[null,null,"",null,null,null,""]
[null,null,"",null,null,null,""]
[null,null,"",null,null,null,""]
[null,null,"",null,null,null,""]
[null,null,"",null,null,null,""]
[null,null,"",null,null,null,""]
[null,null,"",null,null,null,""]
[null,null,"",null,null,null,""]
[null,null,"",null,null,null,""]
[null,null,"",null,null,null,""]
[null,null,"",null,null,null,""]
[null,null,"",null,null,null,""]
[null,null,"",null,null,null,""]
[null,null,"",null,null,null,""]
[null,null,"",null,null,null,""]
[null,null,"",null,null,null,""]
[null,null,"",null,null,null,""]
[null,null,"",null,null,null,""]
[null,null,"",null,null,null,""]
[null,null,"",null,null,null,""]
[null,null,"",null,null,null,""]
[null,null,"",null,null,null,""]
[null,null,"",null,null,null,""]
[null,null,"",null,null,null,""]
[null,null,"",null,null,null,""]
[null,null,"",null,null,null,""]
[null,null,"",null,null,null,""]
[null,null,"",null,null,null,""]
[null,null,"",null,null,null,""]
[null,null,"",null,null,null,""]
[null,null,"",null,null,null,""]
[null,null,"",null,null,null,""]
[null,null,"",null,null,null,""]
[null,null,"",null,null,null,""]
[null,null,"",null,null,null,""]
[null,null,"",null,null,null,""]
[null,null,"",null,null,null,""]
[null,null,"",null,null,null,""]
[null,null,"",null,null,null,""]
[null,null,"",null,null,null,""]
[null,null,"",null,null,null,""]
[null,null,"",null,null,null,""]
[null,null,"",null,null,null,""]
[null,null,"",null,null,null,""]
[null,null,"",null,null,null,""]
[null,null,"",null,null,null,""]
[null,null,"",null,null,null,""]
[null,null,"",null,null,null,""]
[null,null,"",null,null,null,""]
[null,null,"",null,null,null,""]
[null,null,"",null,null,null,""]
[null,null,"",null,null,null,""]
[null,null,"",null,null,null,""]
[null,null,"",null,null,null,""]
[null,null,"",null,null,null,""]
[null,null,"",null,null,null,""]
[null,null,"",null,null,null,""]
[null,null,"",null,null,null,""]
[null,null,"",null,null,null,""]
[null,null,"",null,null,null,""]
[null,null,"",null,null,null,""]
[null,null,"",null,null,null,""]
[null,null,"",null,null,null,""]
[null,null,"",null,null,null,""]
[null,null,"",null,null,null,""]
[null,null,"",null,null,null,""]
[null,null,"",null,null,null,""]
[null,null,"",null,null,null,""]
[null,null,"",null,null,null,""]
[null,null,"",null,null,null,""]
[null,null,"",null,null,null,""]
[null,null,"",null,null,null,""]
[null,null,"",null,null,null,""]
[null,null,"",null,null,null,""]
[null,null,"",null,null,null,""]
[null,null,"",null,null,null,""]
[null,null,"",null,null,null,""]
[null,null,"",null,null,null,""]
[null,null,"",null,null,null,""]
[null,null,"",null,null,null,""]
[null,null,"",null,null,null,""]
[null,null,"",null,null,null,""]
[null,null,"",null,null,null,""]
[null,null,"",null,null,null,""]
[null,null,"",null,null,null,""]
[null,null,"",null,null,null,""]
[null,null,"",null,null,null,""]
[null,null,"",null,null,null,""]
[null,null,"",null,null,null,""]
[null,null,"",null,null,null,""]
[null,null,"",null,null,null,""]
[null,null,"",null,null,null,""]
[null,null,"",null,null,null,""]
[null,null,"",null,null,null,""]
[null,null,"",null,null,null,""]
[null,null,"",null,null,null,""]
[null,null,"",null,null,null,""]
[null,null,"",null,null,null,""]
[null,null,"",null,null,null,""]
[null,null,"",null,null,null,""]
[null,null,"",null,null,null,""]
[null,null,"",null,null,null,""]
[null,null,"",null,null,null,""]
[null,null,"",null,null,null,""]
[null,null,"",null,null,null,""]
[null,null,"",null,null,null,""]
[null,null,"",null,null,null,""]
[null,null,"",null,null,null,""]
[null,null,"",null,null,null,""]
[null,null,"",null,null,null,""]
[null,null,"",null,null,null,""]
[null,null,"",null,null,null,""]
[null,null,"",null,null,null,""]
[null,null,"",null,null,null,""]
[null,null,"",null,null,null,""]
[null,null,"",null,null,null,""]
[null,null,{"$f":"IF(A5187=\"\",\"\",HYPERLINK(\"https://www.medewerkermonitor.nl/\" & A5187))","v":""},null,null,null,{"$f":"IF(D5187=\"\",\"\",\"Beste \"&D5187&\" \"&E5187&\",\")","v":""}]
[null,null,"",null,null,null,""]
[null,null,"",null,null,null,""]
[null,null,"",null,null,null,""]
[null,null,"",null,null,null,""]
[null,null,"",null,null,null,""]
[null,null,"",null,null,null,""]
[null,null,"",null,null,null,""]
[null,null,"",null,null,null,""]
[null,null,"",null,null,null,""]
[null,null,"",null,null,null,""]
[null,null,"",null,null,null,""]
[null,null,"",null,null,null,""]
[null,null,"",null,null,null,""]
[null,null,"",null,null,null,""]
[null,null,"",null,null,null,""]
[null,null,"",null,null,null,""]
[null,null,"",null,null,null,""]
[null,null,"",null,null,null,""]
[null,null,"",null,null,null,""]
[null,null,"",null,null,null,""]
[null,null,"",null,null,null,""]
[null,null,"",null,null,null,""]
[null,null,"",null,null,null,""]
[null,null,{"$f":"IF(A5507=\"\",\"\",HYPERLINK(\"https://www.medewerkermonitor.nl/\" & A5507))","v":""},null,null,null,{"$f":"IF(D5507=\"\",\"\",\"Beste \"&D5507&\" \"&E5507&\",\")","v":""}]
[null,null,"",null,null,null,""]
[null,null,"",null,null,null,""]
[null,null,"",null,null,null,""]
[null,null,"",null,null,null,""]
[null,null,"",null,null,null,""]
[null,null,"",null,null,null,""]
[null,null,"",null,null,null,""]
[null,null,"",null,null,null,""]
[null,null,"",null,null,null,""]
[null,null,"",null,null,null,""]
[null,null,"",null,null,null,""]
[null,null,"",null,null,null,""]
[null,null,"",null,null,null,""]
[null,null,"",null,null,null,""]
[null,null,"",null,null,null,""]
[null,null,"",null,null,null,""]
[null,null,"",null,null,null,""]
[null,null,"",null,null,null,""]
[null,null,"",null,null,null,""]
[null,null,"",null,null,null,""]
[null,null,"",null,null,null,""]
[null,null,"",null,null,null,""]
[null,null,"",null,null,null,""]
[null,null,"",null,null,null,""]
[null,null,"",null,null,null,""]
[null,null,"",null,null,null,""]
[null,null,"",null,null,null,""]
[null,null,"",null,null,null,""]
[null,null,"",null,null,null,""]
[null,null,"",null,null,null,""]
[null,null,"",null,null,null,""]
[null,null,"",null,null,null,""]
[null,null,"",null,null,null,""]
[null,null,"",null,null,null,""]
[null,null,"",null,null,null,""]
[null,null,"",null,null,null,""]
[null,null,"",null,null,null,""]
[null,null,"",null,null,null,""]
[null,null,"",null,null,null,""]
[null,null,"",null,null,null,""]
[null,null,{"$f":"IF(A6083=\"\",\"\",HYPERLINK(\"https://www.medewerkermonitor.nl/\" & A6083))","v":""},null,null,null,{"$f":"IF(D6083=\"\",\"\",\"Beste \"&D6083&\" \"&E6083&\",\")","v":""}]
[null,null,"",null,null,null,""]
[null,null,"",null,null,null,""]
[null,null,"",null,null,null,""]
[null,null,"",null,null,null,""]
[null,null,"",null,null,null,""]
[null,null,"",null,null,null,""]
[null,null,"",null,null,null,""]
[null,null,"",null,null,null,""]
[null,null,"",null,null,null,""]
[null,null,"",null,null,null,""]
[null,null,"",null,null,null,""]
[null,null,"",null,null,null,""]
[null,null,"",null,null,null,""]
[null,null,"",null,null,null,""]
[null,null,"",null,null,null,""]
[null,null,"",null,null,null,""]
[null,null,"",null,null,null,""]
[null,null,"",null,null,null,""]
[null,null,"",null,null,null,""]
[null,null,"",null,null,null,""]
[null,null,"",null,null,null,""]
[null,null,"",null,null,null,""]
[null,null,"",null,null,null,""]
[null,null,"",null,null,null,""]
[null,null,"",null,null,null,""]
[null,null,"",null,null,null,""]
[null,null,"",null,null,null,""]
[null,null,"",null,null,null,""]
[null,null,"",null,null,null,""]
[null,null,"",null,null,null,""]
[null,null,"",null,null,null,""]
[null,null,"",null,null,null,""]
[null,null,"",null,null,null,""]
[null,null,"",null,null,null,""]
[null,null,"",null,null,null,""]
[null,null,"",null,null,null,""]
[null,null,"",null,null,null,""]
[null,null,"",null,null,null,""]
[null,null,"",null,null,null,""]
[null,null,"",null,null,null,""]
[null,null,"",null,null,null,""]
[null,null,"",null,null,null,""]
[null,null,"",null,null,null,""]
[null,null,"",null,null,null,""]
[null,null,"",null,null,null,""]
[null,null,"",null,null,null,""]
[null,null,"",null,null,null,""]
[null,null,"",null,null,null,""]
[null,null,"",null,null,null,""]
[null,null,"",null,null,null,""]
[null,null,"",null,null,null,""]
[null,null,{"$f":"IF(A6787=\"\",\"\",HYPERLINK(\"https://www.medewerkermonitor.nl/\" & A6787))","v":""},null,null,null,{"$f":"IF(D6787=\"\",\"\",\"Beste \"&D6787&\" \"&E6787&\",\")","v":""}]
[null,null,"",null,null,null,""]
[null,null,"",null,null,null,""]
[null,null,"",null,null,null,""]
[null,null,"",null,null,null,""]
[null,null,"",null,null,null,""]
[null,null,"",null,null,null,""]
[null,null,"",null,null,null,""]
[null,null,"",null,null,null,""]
[null,null,{"$f":"IF(A6915=\"\",\"\",HYPERLINK(\"https://www.medewerkermonitor.nl/\" & A6915))","v":""},null,null,null,{"$f":"IF(D6915=\"\",\"\",\"Beste \"&D6915&\" \"&E6915&\",\")","v":""}]
[null,null,"",null,null,null,""]
[null,null,"",null,null,null,""]
[null,null,"",null,null,null,""]
[null,null,"",null,null,null,""]
[null,null,"",null,null,null,""]
[null,null,"",null,null,null,""]
[null,null,"",null,null,null,""]
[null,null,"",null,null,null,""]
[null,null,"",null,null,null,""]
[null,null,"",null,null,null,""]
[null,null,"",null,null,null,""]
[null,null,"",null,null,null,""]
[null,null,"",null,null,null,""]
[null,null,"",null,null,null,""]
[null,null,"",null,null,null,""]
[null,null,"",null,null,null,""]
[null,null,"",null,null,null,""]
[null,null,"",null,null,null,""]
[null,null,"",null,null,null,""]
[null,null,"",null,null,null,""]
[null,null,"",null,null,null,""]
[null,null,"",null,null,null,""]
[null,null,"",null,null,null,""]
[null,null,"",null,null,null,""]
[null,null,"",null,null,null,""]
[null,null,"",null,null,null,""]
[null,null,"",null,null,null,""]
[null,null,"",null,null,null,""]
[null,null,"",null,null,null,""]
[null,null,"",null,null,null,""]
[null,null,"",null,null,null,""]
[null,null,"",null,null,null,""]
[null,null,"",null,null,null,""]
[null,null,"",null,null,null,""]
[null,null,"",null,null,null,""]
[null,null,"",null,null,null,""]
[null,null,"",null,null,null,""]
[null,null,"",null,null,null,""]
[null,null,"",null,null,null,""]
[null,null,"",null,null,null,""]
[null,null,"",null,null,null,""]
[null,null,"",null,null,null,""]
[null,null,"",null,null,null,""]
[null,null,"",null,null,null,""]
[null,null,"",null,null,null,""]
[null,null,"",null,null,null,""]
[null,null,"",null,null,null,""]
[null,null,"",null,null,null,""]
[null,null,"",null,null,null,""]
[null,null,"",null,null,null,""]
[null,null,"",null,null,null,""]
[null,null,"",null,null,null,""]
[null,null,"",null,null,null,""]
[null,null,"",null,null,null,""]
[null,null,"",null,null,null,""]
[null,null,"",null,null,null,""]
[null,null,"",null,null,null,""]
[null,null,"",null,null,null,""]
[null,null,"",null,null,null,""]
[null,null,"",null,null,null,""]
[null,null,"",null,null,null,""]
[null,null,"",null,null,null,""]
[null,null,"",null,null,null,""]
[null,null,"",null,null,null,""]
[null,null,"",null,null,null,""]
[null,null,"",null,null,null,""]
[null,null,"",null,null,null,""]
[null,null,"",null,null,null,""]
[null,null,"",null,null,null,""]
[null,null,"",null,null,null,""]
[null,null,"",null,null,null,""]
[null,null,"",null,null,null,""]
[null,null,"",null,null,null,""]
[null,null,"",null,null,null,""]
[null,null,"",null,null,null,""]
[null,null,"",null,null,null,""]
[null,null,"",null,null,null,""]
[null,null,"",null,null,null,""]
[null,null,"",null,null,null,""]
[null,null,"",null,null,null,""]
[null,null,"",null,null,null,""]
[null,null,"",null,null,null,""]
[null,null,"",null,null,null,""]
[null,null,"",null,null,null,""]
[null,null,"",null,null,null,""]
[null,null,"",null,null,null,""]
[null,null,"",null,null,null,""]
[null,null,"",null,null,null,""]
[null,null,"",null,null,null,""]
[null,null,"",null,null,null,""]
[null,null,"",null,null,null,""]
[null,null,"",null,null,null,""]
[null,null,"",null,null,null,""]
[null,null,"",null,null,null,""]
[null,null,"",null,null,null,""]
[null,null,"",null,null,null,""]
[null,null,"",null,null,null,""]
[null,null,"",null,null,null,""]
[null,null,"",null,null,null,""]
[null,null,"",null,null,null,""]
[null,null,"",null,null,null,""]
[null,null,"",null,null,null,""]
[null,null,"",null,null,null,""]
[null,null,"",null,null,null,""]
[null,null,"",null,null,null,""]
[null,null,"",null,null,null,""]
[null,null,"",null,null,null,""]
[null,null,"",null,null,null,""]
[null,null,"",null,null,null,""]
[null,null,"",null,null,null,""]
[null,null,"",null,null,null,""]
[null,null,"",null,null,null,""]
[null,null,"",null,null,null,""]
[null,null,"",null,null,null,""]
[null,null,"",null,null,null,""]
[null,null,"",null,null,null,""]
[null,null,"",null,null,null,""]
[null,null,"",null,null,null,""]
[null,null,"",null,null,null,""]
[null,null,"",null,null,null,""]
[null,null,"",null,null,null,""]
[null,null,"",null,null,null,""]
[null,null,"",null,null,null,""]
[null,null,"",null,null,null,""]
[null,null,"",null,null,null,""]
[null,null,"",null,null,null,""]
[null,null,"",null,null,null,""]
[null,null,"",null,null,null,""]
[null,null,"",null,null,null,""]
[null,null,"",null,null,null,""]
[null,null,"",null,null,null,""]
[null,null,"",null,null,null,""]
[null,null,"",null,null,null,""]
[null,null,"",null,null,null,""]
[null,null,"",null,null,null,""]
[null,null,"",null,null,null,""]
[null,null,"",null,null,null,""]
[null,null,"",null,null,null,""]
[null,null,"",null,null,null,""]
[null,null,"",null,null,null,""]
[null,null,"",null,null,null,""]
[null,null,"",null,null,null,""]
[null,null,"",null,null,null,""]
[null,null,"",null,null,null,""]
[null,null,"",null,null,null,""]
[null,null,"",null,null,null,""]
[null,null,"",null,null,null,""]
[null,null,"",null,null,null,""]
[null,null,{"$f":"IF(A8963=\"\",\"\",HYPERLINK(\"https://www.medewerkermonitor.nl/\" & A8963))","v":""},null,null,null,{"$f":"IF(D8963=\"\",\"\",\"Beste \"&D8963&\" \"&E8963&\",\")","v":""}]
[null,null,"",null,null,null,""]
[null,null,"",null,null,null,""]
[null,null,"",null,null,null,""]
[null,null,"",null,null,null,""]
[null,null,"",null,null,null,""]
[null,null,"",null,null,null,""]
[null,null,"",null,null,null,""]
[null,null,"",null,null,null,""]
[null,null,"",null,null,null,""]
[null,null,"",null,null,null,""]
[null,null,"",null,null,null,""]
[null,null,"",null,null,null,""]
[null,null,"",null,null,null,""]
[null,null,"",null,null,null,""]
[null,null,"",null,null,null,""]
[null,null,"",null,null,null,""]
[null,null,"",null,null,null,""]
[null,null,"",null,null,null,""]
[null,null,"",null,null,null,""]
[null,null,"",null,null,null,""]
[null,null,"",null,null,null,""]
[null,null,"",null,null,null,""]
[null,null,"",null,null,null,""]
[null,null,"",null,null,null,""]
[null,null,"",null,null,null,""]
[null,null,"",null,null,null,""]
[null,null,"",null,null,null,""]
[null,null,"",null,null,null,""]
[null,null,"",null,null,null,""]
[null,null,"",null,null,null,""]
[null,null,"",null,null,null,""]
[null,null,"",null,null,null,""]
[null,null,"",null,null,null,""]
[null,null,"",null,null,null,""]
[null,null,"",null,null,null,""]
[null,null,"",null,null,null,""]
[null,null,"",null,null,null,""]
[null,null,"",null,null,null,""]
[null,null,"",null,null,null,""]
[null,null,"",null,null,null,""]
[null,null,"",null,null,null,""]
[null,null,"",null,null,null,""]
[null,null,"",null,null,null,""]
[null,null,"",null,null,null,""]
[null,null,"",null,null,null,""]
[null,null,{"$f":"IF(A9603=\"\",\"\",HYPERLINK(\"https://www.medewerkermonitor.nl/\" & A9603))","v":""},null,null,null,{"$f":"IF(D9603=\"\",\"\",\"Beste \"&D9603&\" \"&E9603&\",\")","v":""}]
[null,null,"",null,null,null,""]
[null,null,"",null,null,null,""]
[null,null,"",null,null,null,""]
[null,null,"",null,null,null,""]
[null,null,"",null,null,null,""]
[null,null,"",null,null,null,""]
[null,null,"",null,null,null,""]
[null,null,"",null,null,null,""]
[null,null,"",null,null,null,""]
[null,null,"",null,null,null,""]
[null,null,"",null,null,null,""]
[null,null,"",null,null,null,""]
[null,null,"",null,null,null,""]
[null,null,"",null,null,null,""]
[null,null,"",null,null,null,""]
[null,null,"",null,null,null,""]
[null,null,"",null,null,null,""]
[null,null,"",null,null,null,""]
[null,null,"",null,null,null,""]
[null,null,"",null,null,null,""]
[null,null,"",null,null,null,""]
[null,null,"",null,null,null,""]
[null,null,"",null,null,null,""]
[null,null,"",null,null,null,""]
[null,null,"",null,null,null,""]
[null,null,"",null,null,null,""]
[null,null,"",null,null,null,""]
[null,null,"",null,null,null,""]
[null,null,"",null,null,null,""]
[null,null,"",null,null,null,""]
[null,null,"",null,null,null,""]
[null,null,"",null,null,null,""]
[null,null,"",null,null,null,""]
[null,null,"",null,null,null,""]
[null,null,"",null,null,null,""]
[null,null,"",null,null,null,""]
[null,null,"",null,null,null,""]
[null,null,"",null,null,null,""]
[null,null,"",null,null,null,""]
[null,null,"",null,null,null,""]
[null,null,"",null,null,null,""]
[null,null,"",null,null,null,""]
[null,null,"",null,null,null,""]
[null,null,"",null,null,null,""]
[null,null,"",null,null,null,""]
[null,null,"",null,null,null,""]
[null,null,"",null,null,null,""]
[null,null,"",null,null,null,""]
[null,null,"",null,null,null,""]
[null,null,"",null,null,null,""]
[null,null,"",null,null,null,""]
[null,null,"",null,null,null,""]
[null,null,"",null,null,null,""]
[null,null,"",null,null,null,""]
[null,null,"",null,null,null,""]
[null,null,"",null,null,null,""]
[null,null,"",null,null,null,""]
[null,null,"",null,null,null,""]
[null,null,"",null,null,null,""]
[null,null,"",null,null,null,""]
[null,null,"",null,null,null,""]
[null,null,"",null,null,null,""]
[null,null,"",null,null,null,""]
[null,null,"",null,null,null,""]
[null,null,"",null,null,null,""]
[null,null,"",null,null,null,""]
[null,null,"",null,null,null,""]
[null,null,"",null,null,null,""]
[null,null,"",null,null,null,""]
[null,null,"",null,null,null,""]
[null,null,"",null,null,null,""]
[null,null,"",null,null,null,""]
[null,null,"",null,null,null,""]
[null,null,"",null,null,null,""]
[null,null,"",null,null,null,""]
[null,null,"",null,null,null,""]
[null,null,"",null,null,null,""]
[null,null,"",null,null,null,""]
[null,null,"",null,null,null,""]
[null,null,"",null,null,null,""]
[null,null,"",null,null,null,""]
[null,null,"",null,null,null,""]
[null,null,"",null,null,null,""]
[null,null,"",null,null,null,""]
[null,null,"",null,null,null,""]
[null,null,"",null,null,null,""]
[null,null,"",null,null,null,""]
[null,null,"",null,null,null,""]
[null,null,"",null,null,null,""]
[null,null,"",null,null,null,""]
[null,null,"",null,null,null,""]
[null,null,"",null,null,null,""]
[null,null,"",null,null,null,""]
[null,null,"",null,null,null,""]
[null,null,"",null,null,null,""]
[null,null,"",null,null,null,""]
[null,null,"",null,null,null,""]
[null,null,"",null,null,null,""]
[null,null,"",null,null,null,""]
[null,null,"",null,null,null,""]
[null,null,"",null,null,null,""]
[null,null,"",null,null,null,""]
[null,null,{"$f":"IF(A11011=\"\",\"\",HYPERLINK(\"https://www.medewerkermonitor.nl/\" & A11011))","v":""},null,null,null,{"$f":"IF(D11011=\"\",\"\",\"Beste \"&D11011&\" \"&E11011&\",\")","v":""}]
[null,null,"",null,null,null,""]
[null,null,"",null,null,null,""]
[null,null,"",null,null,null,""]
[null,null,"",null,null,null,""]
[null,null,"",null,null,null,""]
[null,null,"",null,null,null,""]
[null,null,"",null,null,null,""]
[null,null,"",null,null,null,""]
[null,null,"",null,null,null,""]
[null,null,"",null,null,null,""]
[null,null,"",null,null,null,""]
[null,null,"",null,null,null,""]
[null,null,"",null,null,null,""]
[null,null,"",null,null,null,""]
[null,null,"",null,null,null,""]
[null,null,"",null,null,null,""]
[null,null,"",null,null,null,""]
[null,null,"",null,null,null,""]
[null,null,"",null,null,null,""]
[null,null,"",null,null,null,""]
[null,null,"",null,null,null,""]
[null,null,"",null,null,null,""]
[null,null,"",null,null,null,""]
[null,null,"",null,null,null,""]
[null,null,"",null,null,null,""]
[null,null,"",null,null,null,""]
[null,null,"",null,null,null,""]
[null,null,"",null,null,null,""]
[null,null,"",null,null,null,""]
[null,null,"",null,null,null,""]
[null,null,"",null,null,null,""]
[null,null,"",null,null,null,""]
[null,null,"",null,null,null,""]
[null,null,"",null,null,null,""]
[null,null,"",null,null,null,""]
[null,null,"",null,null,null,""]
[null,null,"",null,null,null,""]
[null,null,"",null,null,null,""]
[null,null,"",null,null,null,""]
[null,null,"",null,null,null,""]
[null,null,"",null,null,null,""]
[null,null,"",null,null,null,""]
[null,null,"",null,null,null,""]
[null,null,"",null,null,null,""]
[null,null,"",null,null,null,""]
[null,null,"",null,null,null,""]
[null,null,"",null,null,null,""]
[null,null,"",null,null,null,""]
[null,null,"",null,null,null,""]
[null,null,"",null,null,null,""]
[null,null,"",null,null,null,""]
[null,null,"",null,null,null,""]
[null,null,"",null,null,null,""]
[null,null,"",null,null,null,""]
[null,null,"",null,null,null,""]
[null,null,"",null,null,null,""]
[null,null,"",null,null,null,""]
[null,null,"",null,null,null,""]
[null,null,"",null,null,null,""]
[null,null,"",null,null,null,""]
[null,null,"",null,null,null,""]
[null,null,"",null,null,null,""]
[null,null,"",null,null,null,""]
[null,null,"",null,null,null,""]
[null,null,"",null,null,null,""]
[null,null,"",null,null,null,""]
[null,null,"",null,null,null,""]
[null,null,"",null,null,null,""]
[null,null,"",null,null,null,""]
[null,null,"",null,null,null,""]
[null,null,"",null,null,null,""]
[null,null,"",null,null,null,""]
[null,null,"",null,null,null,""]
[null,null,"",null,null,null,""]
[null,null,"",null,null,null,""]
[null,null,"",null,null,null,""]
[null,null,"",null,null,null,""]
[null,null,"",null,null,null,""]
[null,null,"",null,null,null,""]
[null,null,"",null,null,null,""]
[null,null,"",null,null,null,""]
[null,null,"",null,null,null,""]
[null,null,"",null,null,null,""]
[null,null,"",null,null,null,""]
[null,null,"",null,null,null,""]
[null,null,"",null,null,null,""]
[null,null,"",null,null,null,""]
[null,null,"",null,null,null,""]
[null,null,"",null,null,null,""]
[null,null,"",null,null,null,""]
[null,null,"",null,null,null,""]
[null,null,"",null,null,null,""]
[null,null,{"$f":"IF(A12291=\"\",\"\",HYPERLINK(\"https://www.medewerkermonitor.nl/\" & A12291))","v":""},null,null,null,{"$f":"IF(D12291=\"\",\"\",\"Beste \"&D12291&\" \"&E12291&\",\")","v":""}]
[null,null,"",null,null,null,""]
[null,null,"",null,null,null,""]
[null,null,"",null,null,null,""]
[null,null,"",null,null,null,""]
[null,null,"",null,null,null,""]
[null,null,"",null,null,null,""]
[null,null,"",null,null,null,""]
[null,null,"",null,null,null,""]
[null,null,{"$f":"IF(A12419=\"\",\"\",HYPERLINK(\"https://www.medewerkermonitor.nl/\" & A12419))","v":""},null,null,null,{"$f":"IF(D12419=\"\",\"\",\"Beste \"&D12419&\" \"&E12419&\",\")","v":""}]
[null,null,"",null,null,null,""]
[null,null,"",null,null,null,""]
[null,null,"",null,null,null,""]
[null,null,"",null,null,null,""]
[null,null,"",null,null,null,""]
[null,null,"",null,null,null,""]
[null,null,"",null,null,null,""]
[null,null,"",null,null,null,""]
[null,null,"",null,null,null,""]
[null,null,"",null,null,null,""]
[null,null,"",null,null,null,""]
[null,null,"",null,null,null,""]
[null,null,"",null,null,null,""]
[null,null,"",null,null,null,""]
[null,null,"",null,null,null,""]
[null,null,"",null,null,null,""]
[null,null,"",null,null,null,""]
[null,null,"",null,null,null,""]
[null,null,"",null,null,null,""]
[null,null,"",null,null,null,""]
[null,null,"",null,null,null,""]
[null,null,"",null,null,null,""]
[null,null,"",null,null,null,""]
[null,null,{"$f":"IF(A12739=\"\",\"\",HYPERLINK(\"https://www.medewerkermonitor.nl/\" & A12739))","v":""},null,null,null,{"$f":"IF(D12739=\"\",\"\",\"Beste \"&D12739&\" \"&E12739&\",\")","v":""}]
[null,null,"",null,null,null,""]
[null,null,"",null,null,null,""]
[null,null,"",null,null,null,""]
[null,null,"",null,null,null,""]
[null,null,"",null,null,null,""]
[null,null,"",null,null,null,""]
[null,null,"",null,null,null,""]
[null,null,"",null,null,null,""]
[null,null,"",null,null,null,""]
[null,null,"",null,null,null,""]
[null,null,"",null,null,null,""]
[null,null,"",null,null,null,""]
[null,null,"",null,null,null,""]
[null,null,"",null,null,null,""]
[null,null,"",null,null,null,""]
[null,null,"",null,null,null,""]
[null,null,"",null,null,null,""]
[null,null,"",null,null,null,""]
[null,null,"",null,null,null,""]
[null,null,"",null,null,null,""]
[null,null,"",null,null,null,""]
[null,null,"",null,null,null,""]
[null,null,"",null,null,null,""]
[null,null,"",null,null,null,""]
[null,null,"",null,null,null,""]
[null,null,"",null,null,null,""]
[null,null,"",null,null,null,""]
[null,null,"",null,null,null,""]
[null,null,"",null,null,null,""]
[null,null,"",null,null,null,""]
[null,null,"",null,null,null,""]
[null,null,"",null,null,null,""]
[null,null,"",null,null,null,""]
[null,null,"",null,null,null,""]
[null,null,"",null,null,null,""]
[null,null,"",null,null,null,""]
[null,null,"",null,null,null,""]
[null,null,"",null,null,null,""]
[null,null,"",null,null,null,""]
[null,null,"",null,null,null,""]
[null,null,"",null,null,null,""]
[null,null,"",null,null,null,""]
[null,null,"",null,null,null,""]
[null,null,"",null,null,null,""]
[null,null,"",null,null,null,""]
[null,null,"",null,null,null,""]
[null,null,"",null,null,null,""]
[null,null,"",null,null,null,""]
[null,null,"",null,null,null,""]
[null,null,"",null,null,null,""]
[null,null,"",null,null,null,""]
[null,null,"",null,null,null,""]
[null,null,"",null,null,null,""]
[null,null,"",null,null,null,""]
[null,null,"",null,null,null,""]
[null,null,"",null,null,null,""]
[null,null,"",null,null,null,""]
[null,null,"",null,null,null,""]
[null,null,"",null,null,null,""]
[null,null,"",null,null,null,""]
[null,null,"",null,null,null,""]
[null,null,"",null,null,null,""]
[null,null,"",null,null,null,""]
[null,null,"",null,null,null,""]
[null,null,"",null,null,null,""]
[null,null,"",null,null,null,""]
[null,null,"",null,null,null,""]
[null,null,"",null,null,null,""]
[null,null,"",null,null,null,""]
[null,null,"",null,null,null,""]
[null,null,"",null,null,null,""]
[null,null,"",null,null,null,""]
[null,null,"",null,null,null,""]
[null,null,"",null,null,null,""]
[null,null,"",null,null,null,""]
[null,null,"",null,null,null,""]
[null,null,"",null,null,null,""]
[null,null,"",null,null,null,""]
[null,null,"",null,null,null,""]
[null,null,"",null,null,null,""]
[null,null,"",null,null,null,""]
[null,null,"",null,null,null,""]
[null,null,"",null,null,null,""]
[null,null,"",null,null,null,""]
[null,null,"",null,null,null,""]
[null,null,"",null,null,null,""]
[null,null,"",null,null,null,""]
[null,null,"",null,null,null,""]
[null,null,"",null,null,null,""]
[null,null,"",null,null,null,""]
[null,null,"",null,null,null,""]
[null,null,"",null,null,null,""]
[null,null,"",null,null,null,""]
[null,null,"",null,null,null,""]
[null,null,"",null,null,null,""]
[null,null,"",null,null,null,""]
[null,null,"",null,null,null,""]
[null,null,"",null,null,null,""]
[null,null,"",null,null,null,""]
[null,null,"",null,null,null,""]
[null,null,"",null,null,null,""]
[null,null,"",null,null,null,""]
[null,null,"",null,null,null,""]
[null,null,"",null,null,null,""]
[null,null,"",null,null,null,""]
[null,null,"",null,null,null,""]
[null,null,"",null,null,null,""]
[null,null,"",null,null,null,""]
[null,null,"",null,null,null,""]
[null,null,"",null,null,null,""]
[null,null,"",null,null,null,""]
[null,null,"",null,null,null,""]
[null,null,"",null,null,null,""]
[null,null,"",null,null,null,""]
[null,null,"",null,null,null,""]
[null,null,"",null,null,null,""]
[null,null,"",null,null,null,""]
[null,null,"",null,null,null,""]
[null,null,"",null,null,null,""]
[null,null,"",null,null,null,""]
[null,null,"",null,null,null,""]
[null,null,"",null,null,null,""]
[null,null,"",null,null,null,""]
[null,null,"",null,null,null,""]
[null,null,{"$f":"IF(A14467=\"\",\"\",HYPERLINK(\"https://www.medewerkermonitor.nl/\" & A14467))","v":""},null,null,null,{"$f":"IF(D14467=\"\",\"\",\"Beste \"&D14467&\" \"&E14467&\",\")","v":""}]
[null,null,"",null,null,null,""]
[null,null,"",null,null,null,""]
[null,null,"",null,null,null,""]
[null,null,"",null,null,null,""]
[null,null,{"$f":"IF(A14531=\"\",\"\",HYPERLINK(\"https://www.medewerkermonitor.nl/\" & A14531))","v":""},null,null,null,{"$f":"IF(D14531=\"\",\"\",\"Beste \"&D14531&\" \"&E14531&\",\")","v":""}]
[null,null,"",null,null,null,""]
[null,null,"",null,null,null,""]
[null,null,"",null,null,null,""]
[null,null,"",null,null,null,""]
[null,null,"",null,null,null,""]
[null,null,"",null,null,null,""]
[null,null,"",null,null,null,""]
[null,null,"",null,null,null,""]
[null,null,"",null,null,null,""]
[null,null,"",null,null,null,""]
[null,null,"",null,null,null,""]
[null,null,"",null,null,null,""]
[null,null,"",null,null,null,""]
[null,null,"",null,null,null,""]
[null,null,"",null,null,null,""]
[null,null,"",null,null,null,""]
[null,null,"",null,null,null,""]
[null,null,"",null,null,null,""]
[null,null,"",null,null,null,""]
[null,null,"",null,null,null,""]
[null,null,"",null,null,null,""]
[null,null,"",null,null,null,""]
[null,null,"",null,null,null,""]
[null,null,"",null,null,null,""]
[null,null,"",null,null,null,""]
[null,null,"",null,null,null,""]
[null,null,"",null,null,null,""]
[null,null,"",null,null,null,""]
[null,null,"",null,null,null,""]
[null,null,"",null,null,null,""]
[null,null,"",null,null,null,""]
[null,null,"",null,null,null,""]
[null,null,"",null,null,null,""]
[null,null,"",null,null,null,""]
[null,null,"",null,null,null,""]
[null,null,"",null,null,null,""]
[null,null,"",null,null,null,""]
[null,null,"",null,null,null,""]
[null,null,"",null,null,null,""]
[null,null,"",null,null,null,""]
[null,null,"",null,null,null,""]
[null,null,"",null,null,null,""]
[null,null,"",null,null,null,""]
[null,null,"",null,null,null,""]
[null,null,"",null,null,null,""]
[null,null,"",null,null,null,""]
[null,null,"",null,null,null,""]
[null,null,"",null,null,null,""]
[null,null,"",null,null,null,""]
[null,null,"",null,null,null,""]
[null,null,"",null,null,null,""]
[null,null,"",null,null,null,""]
[null,null,"",null,null,null,""]
[null,null,"",null,null,null,""]
[null,null,"",null,null,null,""]
[null,null,"",null,null,null,""]
[null,null,"",null,null,null,""]
[null,null,"",null,null,null,""]
[null,null,"",null,null,null,""]
[null,null,"",null,null,null,""]
[null,null,"",null,null,null,""]
[null,null,"",null,null,null,""]
[null,null,"",null,null,null,""]
[null,null,"",null,null,null,""]
[null,null,"",null,null,null,""]
[null,null,"",null,null,null,""]
[null,null,"",null,null,null,""]
[null,null,"",null,null,null,""]
[null,null,"",null,null,null,""]
[null,null,"",null,null,null,""]
[null,null,"",null,null,null,""]
[null,null,"",null,null,null,""]
[null,null,"",null,null,null,""]
[null,null,"",null,null,null,""]
[null,null,"",null,null,null,""]
[null,null,"",null,null,null,""]
[null,null,"",null,null,null,""]
[null,null,"",null,null,null,""]
[null,null,"",null,null,null,""]
[null,null,"",null,null,null,""]
[null,null,"",null,null,null,""]
[null,null,"",null,null,null,""]
[null,null,"",null,null,null,""]
[null,null,"",null,null,null,""]
[null,null,"",null,null,null,""]
[null,null,"",null,null,null,""]
[null,null,"",null,null,null,""]
[null,null,"",null,null,null,""]
[null,null,"",null,null,null,""]
[null,null,"",null,null,null,""]
[null,null,"",null,null,null,""]
[null,null,"",null,null,null,""]
[null,null,"",null,null,null,""]
[null,null,"",null,null,null,""]
[null,null,"",null,null,null,""]
[null,null,"",null,null,null,""]
[null,null,"",null,null,null,""]
[null,null,"",null,null,null,""]
[null,null,"",null,null,null,""]
[null,null,"",null,null,null,""]
[null,null,"",null,null,null,""]
[null,null,{"$f":"IF(A15939=\"\",\"\",HYPERLINK(\"https://www.medewerkermonitor.nl/\" & A15939))","v":""},null,null,null,{"$f":"IF(D15939=\"\",\"\",\"Beste \"&D15939&\" \"&E15939&\",\")","v":""}]
[null,null,"",null,null,null,""]
[null,null,"",null,null,null,""]
[null,null,"",null,null,null,""]
[null,null,"",null,null,null,""]
[null,null,"",null,null,null,""]
[null,null,"",null,null,null,""]
[null,null,"",null,null,null,""]
[null,null,"",null,null,null,""]
[null,null,"",null,null,null,""]
[null,null,"",null,null,null,""]
[null,null,"",null,null,null,""]
[null,null,"",null,null,null,""]
[null,null,"",null,null,null,""]
[null,null,"",null,null,null,""]
[null,null,"",null,null,null,""]
[null,null,"",null,null,null,""]
[null,null,"",null,null,null,""]
[null,null,"",null,null,null,""]
[null,null,"",null,null,null,""]
[null,null,"",null,null,null,""]
[null,null,"",null,null,null,""]
[null,null,"",null,null,null,""]
[null,null,"",null,null,null,""]
[null,null,"",null,null,null,""]
[null,null,"",null,null,null,""]
[null,null,"",null,null,null,""]
[null,null,"",null,null,null,""]
[null,null,"",null,null,null,""]
[null,null,"",null,null,null,""]
[null,null,"",null,null,null,""]
[null,null,"",null,null,null,""]
[null,null,"",null,null,null,""]
[null,null,"",null,null,null,""]
[null,null,"",null,null,null,""]
[null,null,"",null,null,null,""]
[null,null,"",null,null,null,""]
[null,null,"",null,null,null,""]
[null,null,"",null,null,null,""]
[null,null,"",null,null,null,""]
[null,null,"",null,null,null,""]
[null,null,"",null,null,null,""]
[null,null,"",null,null,null,""]
[null,null,"",null,null,null,""]
[null,null,"",null,null,null,""]
[null,null,"",null,null,null,""]
[null,null,"",null,null,null,""]
[null,null,"",null,null,null,""]
[null,null,"",null,null,null,""]
[null,null,"",null,null,null,""]
[null,null,"",null,null,null,""]
[null,null,"",null,null,null,""]
[null,null,"",null,null,null,""]
[null,null,"",null,null,null,""]
[null,null,"",null,null,null,""]
[null,null,"",null,null,null,""]
[null,null,"",null,null,null,""]
[null,null,"",null,null,null,""]
[null,null,"",null,null,null,""]
[null,null,"",null,null,null,""]
[null,null,"",null,null,null,""]
[null,null,"",null,null,null,""]
[null,null,"",null,null,null,""]
[null,null,"",null,null,null,""]
[null,null,"",null,null,null,""]
[null,null,"",null,null,null,""]
[null,null,"",null,null,null,""]
[null,null,"",null,null,null,""]
[null,null,"",null,null,null,""]
[null,null,"",null,null,null,""]
[null,null,"",null,null,null,""]
[null,null,"",null,null,null,""]
[null,null,"",null,null,null,""]
[null,null,"",null,null,null,""]
[null,null,"",null,null,null,""]
[null,null,"",null,null,null,""]
[null,null,"",null,null,null,""]
[null,null,"",null,null,null,""]
[null,null,"",null,null,null,""]
[null,null,"",null,null,null,""]
[null,null,"",null,null,null,""]
[null,null,"",null,null,null,""]
[null,null,"",null,null,null,""]
[null,null,"",null,null,null,""]
[null,null,"",null,null,null,""]
[null,null,"",null,null,null,""]
[null,null,"",null,null,null,""]
[null,null,"",null,null,null,""]
[null,null,"",null,null,null,""]
[null,null,"",null,null,null,""]
[null,null,"",null,null,null,""]
[null,null,"",null,null,null,""]
[null,null,"",null,null,null,""]
[null,null,"",null,null,null,""]
[null,null,"",null,null,null,""]
[null,null,"",null,null,null,""]
[null,null,"",null,null,null,""]
[null,null,"",null,null,null,""]
[null,null,"",null,null,null,""]
[null,null,"",null,null,null,""]
[null,null,"",null,null,null,""]
[null,null,"",null,null,null,""]
[null,null,"",null,null,null,""]
[null,null,"",null,null,null,""]
[null,null,"",null,null,null,""]
[null,null,"",null,null,null,""]
[null,null,"",null,null,null,""]
[null,null,"",null,null,null,""]
[null,null,"",null,null,null,""]
[null,null,"",null,null,null,""]
[null,null,"",null,null,null,""]
[null,null,"",null,null,null,""]
[null,null,"",null,null,null,""]
[null,null,"",null,null,null,""]
[null,null,"",null,null,null,""]
[null,null,"",null,null,null,""]
[null,null,"",null,null,null,""]
[null,null,"",null,null,null,""]
[null,null,"",null,null,null,""]
[null,null,"",null,null,null,""]
[null,null,"",null,null,null,""]
[null,null,"",null,null,null,""]
[null,null,"",null,null,null,""]
[null,null,"",null,null,null,""]
[null,null,"",null,null,null,""]
[null,null,"",null,null,null,""]
[null,null,"",null,null,null,""]
[null,null,"",null,null,null,""]
[null,null,"",null,null,null,""]
[null,null,"",null,null,null,""]
[null,null,"",null,null,null,""]
[null,null,"",null,null,null,""]
[null,null,"",null,null,null,""]
[null,null,"",null,null,null,""]
[null,null,"",null,null,null,""]
[null,null,{"$f":"IF(A17795=\"\",\"\",HYPERLINK(\"https://www.medewerkermonitor.nl/\" & A17795))","v":""},null,null,null,{"$f":"IF(D17795=\"\",\"\",\"Beste \"&D17795&\" \"&E17795&\",\")","v":""}]
[null,null,"",null,null,null,""]
[null,null,"",null,null,null,""]
[null,null,"",null,null,null,""]
[null,null,"",null,null,null,""]
[null,null,"",null,null,null,""]
[null,null,"",null,null,null,""]
[null,null,"",null,null,null,""]
[null,null,"",null,null,null,""]
[null,null,"",null,null,null,""]
[null,null,"",null,null,null,""]
[null,null,"",null,null,null,""]
[null,null,"",null,null,null,""]
[null,null,"",null,null,null,""]
[null,null,{"$f":"IF(A17987=\"\",\"\",HYPERLINK(\"https://www.medewerkermonitor.nl/\" & A17987))","v":""},null,null,null,{"$f":"IF(D17987=\"\",\"\",\"Beste \"&D17987&\" \"&E17987&\",\")","v":""}]
[null,null,"",null,null,null,""]
[null,null,"",null,null,null,""]
[null,null,"",null,null,null,""]
[null,null,"",null,null,null,""]
[null,null,"",null,null,null,""]
[null,null,"",null,null,null,""]
[null,null,"",null,null,null,""]
[null,null,"",null,null,null,""]
[null,null,"",null,null,null,""]
[null,null,"",null,null,null,""]
[null,null,"",null,null,null,""]
[null,null,"",null,null,null,""]
[null,null,"",null,null,null,""]
[null,null,"",null,null,null,""]
[null,null,"",null,null,null,""]
[null,null,"",null,null,null,""]
[null,null,"",null,null,null,""]
[null,null,"",null,null,null,""]
[null,null,{"$f":"IF(A18243=\"\",\"\",HYPERLINK(\"https://www.medewerkermonitor.nl/\" & A18243))","v":""},null,null,null,{"$f":"IF(D18243=\"\",\"\",\"Beste \"&D18243&\" \"&E18243&\",\")","v":""}]
[null,null,"",null,null,null,""]
[null,null,"",null,null,null,""]
[null,null,"",null,null,null,""]
[null,null,"",null,null,null,""]
[null,null,"",null,null,null,""]
[null,null,"",null,null,null,""]
[null,null,"",null,null,null,""]
[null,null,"",null,null,null,""]
[null,null,"",null,null,null,""]
[null,null,"",null,null,null,""]
[null,null,"",null,null,null,""]
[null,null,"",null,null,null,""]
[null,null,"",null,null,null,""]
[null,null,"",null,null,null,""]
[null,null,"",null,null,null,""]
[null,null,"",null,null,null,""]
[null,null,"",null,null,null,""]
[null,null,"",null,null,null,""]
[null,null,"",null,null,null,""]
[null,null,"",null,null,null,""]
[null,null,"",null,null,null,""]
[null,null,"",null,null,null,""]
[null,null,"",null,null,null,""]
[null,null,"",null,null,null,""]
[null,null,"",null,null,null,""]
[null,null,"",null,null,null,""]
[null,null,"",null,null,null,""]
[null,null,"",null,null,null,""]
[null,null,"",null,null,null,""]
[null,null,"",null,null,null,""]
[null,null,"",null,null,null,""]
[null,null,"",null,null,null,""]
[null,null,"",null,null,null,""]
[null,null,"",null,null,null,""]
[null,null,"",null,null,null,""]
[null,null,"",null,null,null,""]
[null,null,"",null,null,null,""]
[null,null,"",null,null,null,""]
[null,null,"",null,null,null,""]
[null,null,"",null,null,null,""]
[null,null,"",null,null,null,""]
[null,null,"",null,null,null,""]
[null,null,"",null,null,null,""]
[null,null,"",null,null,null,""]
[null,null,"",null,null,null,""]
[null,null,"",null,null,null,""]
[null,null,"",null,null,null,""]
[null,null,"",null,null,null,""]
[null,null,"",null,null,null,""]
[null,null,"",null,null,null,""]
[null,null,"",null,null,null,""]
[null,null,"",null,null,null,""]
[null,null,"",null,null,null,""]
[null,null,"",null,null,null,""]
[null,null,"",null,null,null,""]
[null,null,"",null,null,null,""]
[null,null,"",null,null,null,""]
[null,null,"",null,null,null,""]
[null,null,"",null,null,null,""]
[null,null,"",null,null,null,""]
[null,null,"",null,null,null,""]
[null,null,"",null,null,null,""]
[null,null,"",null,null,null,""]
[null,null,"",null,null,null,""]
[null,null,"",null,null,null,""]
[null,null,"",null,null,null,""]
[null,null,"",null,null,null,""]
[null,null,"",null,null,null,""]
[null,null,"",null,null,null,""]
[null,null,"",null,null,null,""]
[null,null,"",null,null,null,""]
[null,null,"",null,null,null,""]
[null,null,"",null,null,null,""]
[null,null,"",null,null,null,""]
[null,null,"",null,null,null,""]
[null,null,"",null,null,null,""]
[null,null,"",null,null,null,""]
[null,null,"",null,null,null,""]
[null,null,"",null,null,null,""]
[null,null,"",null,null,null,""]
[null,null,"",null,null,null,""]
[null,null,"",null,null,null,""]
[null,null,"",null,null,null,""]
[null,null,"",null,null,null,""]
[null,null,"",null,null,null,""]
[null,null,"",null,null,null,""]
[null,null,"",null,null,null,""]
[null,null,"",null,null,null,""]
[null,null,"",null,null,null,""]
[null,null,"",null,null,null,""]
[null,null,"",null,null,null,""]
[null,null,"",null,null,null,""]
[null,null,"",null,null,null,""]
[null,null,"",null,null,null,""]
[null,null,"",null,null,null,""]
[null,null,"",null,null,null,""]
[null,null,"",null,null,null,""]
[null,null,"",null,null,null,""]
[null,null,"",null,null,null,""]
[null,null,"",null,null,null,""]
[null,null,"",null,null,null,""]
[null,null,"",null,null,null,""]
[null,null,"",null,null,null,""]
[null,null,"",null,null,null,""]
[null,null,"",null,null,null,""]
[null,null,"",null,null,null,""]
[null,null,"",null,null,null,""]
[null,null,"",null,null,null,""]
[null,null,"",null,null,null,""]
[null,null,"",null,null,null,""]
[null,null,"",null,null,null,""]
[null,null,"",null,null,null,""]
[null,null,"",null,null,null,""]
[null,null,"",null,null,null,""]
[null,null,"",null,null,null,""]
[null,null,"",null,null,null,""]
[null,null,"",null,null,null,""]
[null,null,"",null,null,null,""]
[null,null,"",null,null,null,""]
[null,null,"",null,null,null,""]
[null,null,"",null,null,null,""]
[null,null,"",null,null,null,""]
[null,null,"",null,null,null,""]
[null,null,"",null,null,null,""]
[null,null,"",null,null,null,""]
[null,null,"",null,null,null,""]
[null,null,"",null,null,null,""]
[null,null,"",null,null,null,""]
[null,null,"",null,null,null,""]
[null,null,{"$f":"IF(A20035=\"\",\"\",HYPERLINK(\"https://www.medewerkermonitor.nl/\" & A20035))","v":""},null,null,null,{"$f":"IF(D20035=\"\",\"\",\"Beste \"&D20035&\" \"&E20035&\",\")","v":""}]
[null,null,"",null,null,null,""]
[null,null,"",null,null,null,""]
[null,null,"",null,null,null,""]
[null,null,"",null,null,null,""]
[null,null,"",null,null,null,""]
[null,null,"",null,null,null,""]
[null,null,"",null,null,null,""]
[null,null,"",null,null,null,""]
[null,null,"",null,null,null,""]
[null,null,"",null,null,null,""]
[null,null,"",null,null,null,""]
[null,null,"",null,null,null,""]
[null,null,"",null,null,null,""]
[null,null,"",null,null,null,""]
[null,null,"",null,null,null,""]
[null,null,"",null,null,null,""]
[null,null,"",null,null,null,""]
[null,null,"",null,null,null,""]
[null,null,{"$f":"IF(A20291=\"\",\"\",HYPERLINK(\"https://www.medewerkermonitor.nl/\" & A20291))","v":""},null,null,null,{"$f":"IF(D20291=\"\",\"\",\"Beste \"&D20291&\" \"&E20291&\",\")","v":""}]
[null,null,"",null,null,null,""]
[null,null,"",null,null,null,""]
[null,null,"",null,null,null,""]
[null,null,"",null,null,null,""]
[null,null,"",null,null,null,""]
[null,null,"",null,null,null,""]
[null,null,"",null,null,null,""]
[null,null,"",null,null,null,""]
[null,null,"",null,null,null,""]
[null,null,"",null,null,null,""]
[null,null,"",null,null,null,""]
[null,null,"",null,null,null,""]
[null,null,"",null,null,null,""]
[null,null,{"$f":"IF(A20483=\"\",\"\",HYPERLINK(\"https://www.medewerkermonitor.nl/\" & A20483))","v":""},null,null,null,{"$f":"IF(D20483=\"\",\"\",\"Beste \"&D20483&\" \"&E20483&\",\")","v":""}]
[null,null,"",null,null,null,""]
[null,null,"",null,null,null,""]
[null,null,"",null,null,null,""]
[null,null,"",null,null,null,""]
[null,null,"",null,null,null,""]
[null,null,"",null,null,null,""]
[null,null,"",null,null,null,""]
[null,null,"",null,null,null,""]
[null,null,"",null,null,null,""]
[null,null,"",null,null,null,""]
[null,null,"",null,null,null,""]
[null,null,"",null,null,null,""]
[null,null,"",null,null,null,""]
[null,null,"",null,null,null,""]
[null,null,"",null,null,null,""]
[null,null,"",null,null,null,""]
[null,null,"",null,null,null,""]
[null,null,"",null,null,null,""]
[null,null,"",null,null,null,""]
[null,null,"",null,null,null,""]
[null,null,"",null,null,null,""]
[null,null,"",null,null,null,""]
[null,null,"",null,null,null,""]
[null,null,"",null,null,null,""]
[null,null,"",null,null,null,""]
[null,null,"",null,null,null,""]
[null,null,"",null,null,null,""]
[null,null,"",null,null,null,""]
[null,null,"",null,null,null,""]
[null,null,"",null,null,null,""]
[null,null,"",null,null,null,""]
[null,null,"",null,null,null,""]
[null,null,"",null,null,null,""]
[null,null,"",null,null,null,""]
[null,null,"",null,null,null,""]
[null,null,"",null,null,null,""]
[null,null,"",null,null,null,""]
[null,null,"",null,null,null,""]
[null,null,"",null,null,null,""]
[null,null,"",null,null,null,""]
[null,null,"",null,null,null,""]
[null,null,"",null,null,null,""]
[null,null,"",null,null,null,""]
[null,null,"",null,null,null,""]
[null,null,"",null,null,null,""]
[null,null,"",null,null,null,""]
[null,null,"",null,null,null,""]
[null,null,"",null,null,null,""]
[null,null,"",null,null,null,""]
[null,null,"",null,null,null,""]
[null,null,"",null,null,null,""]
[null,null,"",null,null,null,""]
[null,null,"",null,null,null,""]
[null,null,"",null,null,null,""]
[null,null,"",null,null,null,""]
[null,null,"",null,null,null,""]
[null,null,"",null,null,null,""]
[null,null,"",null,null,null,""]
[null,null,"",null,null,null,""]
[null,null,"",null,null,null,""]
[null,null,"",null,null,null,""]
[null,null,"",null,null,null,""]
[null,null,"",null,null,null,""]
[null,null,"",null,null,null,""]
[null,null,"",null,null,null,""]
[null,null,"",null,null,null,""]
[null,null,"",null,null,null,""]
[null,null,"",null,null,null,""]
[null,null,"",null,null,null,""]
[null,null,"",null,null,null,""]
[null,null,"",null,null,null,""]
[null,null,"",null,null,null,""]
[null,null,"",null,null,null,""]
[null,null,"",null,null,null,""]
[null,null,"",null,null,null,""]
[null,null,"",null,null,null,""]
[null,null,"",null,null,null,""]
[null,null,"",null,null,null,""]
[null,null,"",null,null,null,""]
[null,null,"",null,null,null,""]
[null,null,"",null,null,null,""]
[null,null,"",null,null,null,""]
[null,null,"",null,null,null,""]
[null,null,"",null,null,null,""]
[null,null,"",null,null,null,""]
[null,null,"",null,null,null,""]
[null,null,"",null,null,null,""]
[null,null,"",null,null,null,""]
[null,null,"",null,null,null,""]
[null,null,"",null,null,null,""]
[null,null,"",null,null,null,""]
[null,null,"",null,null,null,""]
[null,null,{"$f":"IF(A21763=\"\",\"\",HYPERLINK(\"https://www.medewerkermonitor.nl/\" & A21763))","v":""},null,null,null,{"$f":"IF(D21763=\"\",\"\",\"Beste \"&D21763&\" \"&E21763&\",\")","v":""}]
[null,null,"",null,null,null,""]
[null,null,"",null,null,null,""]
[null,null,"",null,null,null,""]
[null,null,"",null,null,null,""]
[null,null,"",null,null,null,""]
[null,null,"",null,null,null,""]
[null,null,"",null,null,null,""]
[null,null,"",null,null,null,""]
[null,null,"",null,null,null,""]
[null,null,"",null,null,null,""]
[null,null,"",null,null,null,""]
[null,null,"",null,null,null,""]
[null,null,"",null,null,null,""]
[null,null,"",null,null,null,""]
[null,null,"",null,null,null,""]
[null,null,"",null,null,null,""]
[null,null,"",null,null,null,""]
[null,null,"",null,null,null,""]
[null,null,"",null,null,null,""]
[null,null,"",null,null,null,""]
[null,null,"",null,null,null,""]
[null,null,"",null,null,null,""]
[null,null,"",null,null,null,""]
[null,null,"",null,null,null,""]
[null,null,"",null,null,null,""]
[null,null,"",null,null,null,""]
[null,null,"",null,null,null,""]
[null,null,"",null,null,null,""]
[null,null,"",null,null,null,""]
[null,null,"",null,null,null,""]
[null,null,"",null,null,null,""]
[null,null,"",null,null,null,""]
[null,null,"",null,null,null,""]
[null,null,"",null,null,null,""]
[null,null,"",null,null,null,""]
[null,null,"",null,null,null,""]
[null,null,"",null,null,null,""]
[null,null,"",null,null,null,""]
[null,null,"",null,null,null,""]
[null,null,"",null,null,null,""]
[null,null,"",null,null,null,""]
[null,null,"",null,null,null,""]
[null,null,"",null,null,null,""]
[null,null,"",null,null,null,""]
[null,null,"",null,null,null,""]
[null,null,"",null,null,null,""]
[null,null,"",null,null,null,""]
[null,null,"",null,null,null,""]
[null,null,"",null,null,null,""]
[null,null,"",null,null,null,""]
[null,null,"",null,null,null,""]
[null,null,"",null,null,null,""]
[null,null,"",null,null,null,""]
[null,null,"",null,null,null,""]
[null,null,"",null,null,null,""]
[null,null,"",null,null,null,""]
[null,null,"",null,null,null,""]
[null,null,"",null,null,null,""]
[null,null,"",null,null,null,""]
[null,null,"",null,null,null,""]
[null,null,"",null,null,null,""]
[null,null,"",null,null,null,""]
[null,null,"",null,null,null,""]
[null,null,"",null,null,null,""]
[null,null,"",null,null,null,""]
[null,null,"",null,null,null,""]
[null,null,"",null,null,null,""]
[null,null,"",null,null,null,""]
[null,null,"",null,null,null,""]
[null,null,"",null,null,null,""]
[null,null,"",null,null,null,""]
[null,null,"",null,null,null,""]
[null,null,"",null,null,null,""]
[null,null,"",null,null,null,""]
[null,null,"",null,null,null,""]
[null,null,"",null,null,null,""]
[null,null,"",null,null,null,""]
[null,null,"",null,null,null,""]
[null,null,"",null,null,null,""]
[null,null,"",null,null,null,""]
[null,null,"",null,null,null,""]
[null,null,"",null,null,null,""]
[null,null,"",null,null,null,""]
[null,null,"",null,null,null,""]
[null,null,"",null,null,null,""]
[null,null,"",null,null,null,""]
[null,null,"",null,null,null,""]
[null,null,"",null,null,null,""]
[null,null,"",null,null,null,""]
[null,null,"",null,null,null,""]
[null,null,"",null,null,null,""]
[null,null,"",null,null,null,""]
[null,null,"",null,null,null,""]
[null,null,"",null,null,null,""]
[null,null,"",null,null,null,""]
[null,null,"",null,null,null,""]
[null,null,"",null,null,null,""]
[null,null,"",null,null,null,""]
[null,null,"",null,null,null,""]
[null,null,"",null,null,null,""]
[null,null,"",null,null,null,""]
[null,null,"",null,null,null,""]
[null,null,"",null,null,null,""]
[null,null,"",null,null,null,""]
[null,null,"",null,null,null,""]
[null,null,"",null,null,null,""]
[null,null,"",null,null,null,""]
[null,null,"",null,null,null,""]
[null,null,"",null,null,null,""]
[null,null,"",null,null,null,""]
[null,null,"",null,null,null,""]
[null,null,"",null,null,null,""]
[null,null,"",null,null,null,""]
[null,null,"",null,null,null,""]
[null,null,"",null,null,null,""]
[null,null,"",null,null,null,""]
[null,null,"",null,null,null,""]
[null,null,"",null,null,null,""]
[null,null,"",null,null,null,""]
[null,null,"",null,null,null,""]
[null,null,"",null,null,null,""]
[null,null,"",null,null,null,""]
[null,null,"",null,null,null,""]
[null,null,"",null,null,null,""]
[null,null,{"$f":"IF(A23491=\"\",\"\",HYPERLINK(\"https://www.medewerkermonitor.nl/\" & A23491))","v":""},null,null,null,{"$f":"IF(D23491=\"\",\"\",\"Beste \"&D23491&\" \"&E23491&\",\")","v":""}]
[null,null,"",null,null,null,""]
[null,null,"",null,null,null,""]
[null,null,"",null,null,null,""]
[null,null,"",null,null,null,""]
[null,null,"",null,null,null,""]
[null,null,"",null,null,null,""]
[null,null,"",null,null,null,""]
[null,null,"",null,null,null,""]
[null,null,"",null,null,null,""]
[null,null,"",null,null,null,""]
[null,null,"",null,null,null,""]
[null,null,"",null,null,null,""]
[null,null,"",null,null,null,""]
[null,null,"",null,null,null,""]
[null,null,"",null,null,null,""]
[null,null,"",null,null,null,""]
[null,null,"",null,null,null,""]
[null,null,"",null,null,null,""]
[null,null,"",null,null,null,""]
[null,null,"",null,null,null,""]
[null,null,"",null,null,null,""]
[null,null,"",null,null,null,""]
[null,null,"",null,null,null,""]
[null,null,{"$f":"IF(A23811=\"\",\"\",HYPERLINK(\"https://www.medewerkermonitor.nl/\" & A23811))","v":""},null,null,null,{"$f":"IF(D23811=\"\",\"\",\"Beste \"&D23811&\" \"&E23811&\",\")","v":""}]
[null,null,"",null,null,null,""]
[null,null,"",null,null,null,""]
[null,null,"",null,null,null,""]
[null,null,"",null,null,null,""]
[null,null,"",null,null,null,""]
[null,null,"",null,null,null,""]
[null,null,"",null,null,null,""]
[null,null,"",null,null,null,""]
[null,null,"",null,null,null,""]
[null,null,"",null,null,null,""]
[null,null,"",null,null,null,""]
[null,null,"",null,null,null,""]
[null,null,"",null,null,null,""]
[null,null,"",null,null,null,""]
[null,null,"",null,null,null,""]
[null,null,"",null,null,null,""]
[null,null,"",null,null,null,""]
[null,null,"",null,null,null,""]
[null,null,"",null,null,null,""]
[null,null,"",null,null,null,""]
[null,null,"",null,null,null,""]
[null,null,"",null,null,null,""]
[null,null,"",null,null,null,""]
[null,null,"",null,null,null,""]
[null,null,"",null,null,null,""]
[null,null,"",null,null,null,""]
[null,null,"",null,null,null,""]
[null,null,"",null,null,null,""]
[null,null,"",null,null,null,""]
[null,null,"",null,null,null,""]
[null,null,"",null,null,null,""]
[null,null,"",null,null,null,""]
[null,null,"",null,null,null,""]
[null,null,"",null,null,null,""]
[null,null,"",null,null,null,""]
[null,null,"",null,null,null,""]
[null,null,"",null,null,null,""]
[null,null,"",null,null,null,""]
[null,null,"",null,null,null,""]
[null,null,"",null,null,null,""]
[null,null,"",null,null,null,""]
[null,null,"",null,null,null,""]
[null,null,"",null,null,null,""]
[null,null,"",null,null,null,""]
[null,null,"",null,null,null,""]
[null,null,"",null,null,null,""]
[null,null,"",null,null,null,""]
[null,null,"",null,null,null,""]
[null,null,"",null,null,null,""]
[null,null,"",null,null,null,""]
[null,null,"",null,null,null,""]
[null,null,"",null,null,null,""]
[null,null,"",null,null,null,""]
[null,null,"",null,null,null,""]
[null,null,"",null,null,null,""]
[null,null,"",null,null,null,""]
[null,null,"",null,null,null,""]
[null,null,"",null,null,null,""]
[null,null,"",null,null,null,""]
[null,null,"",null,null,null,""]
[null,null,"",null,null,null,""]
[null,null,"",null,null,null,""]
[null,null,"",null,null,null,""]
[null,null,"",null,null,null,""]
[null,null,"",null,null,null,""]
[null,null,"",null,null,null,""]
[null,null,"",null,null,null,""]
[null,null,"",null,null,null,""]
[null,null,"",null,null,null,""]
[null,null,"",null,null,null,""]
[null,null,"",null,null,null,""]
[null,null,"",null,null,null,""]
[null,null,"",null,null,null,""]
[null,null,"",null,null,null,""]
[null,null,"",null,null,null,""]
[null,null,"",null,null,null,""]
[null,null,"",null,null,null,""]
[null,null,"",null,null,null,""]
[null,null,"",null,null,null,""]
[null,null,"",null,null,null,""]
[null,null,"",null,null,null,""]
[null,null,"",null,null,null,""]
[null,null,"",null,null,null,""]
[null,null,"",null,null,null,""]
[null,null,"",null,null,null,""]
[null,null,"",null,null,null,""]
[null,null,"",null,null,null,""]
[null,null,"",null,null,null,""]
[null,null,"",null,null,null,""]
[null,null,"",null,null,null,""]
[null,null,"",null,null,null,""]
[null,null,"",null,null,null,""]
[null,null,"",null,null,null,""]
[null,null,"",null,null,null,""]
[null,null,"",null,null,null,""]
[null,null,"",null,null,null,""]
[null,null,"",null,null,null,""]
[null,null,"",null,null,null,""]
[null,null,"",null,null,null,""]
[null,null,"",null,null,null,""]
[null,null,"",null,null,null,""]
[null,null,"",null,null,null,""]
[null,null,"",null,null,null,""]
[null,null,"",null,null,null,""]
[null,null,"",null,null,null,""]
[null,null,"",null,null,null,""]
[null,null,"",null,null,null,""]
[null,null,"",null,null,null,""]
[null,null,"",null,null,null,""]
[null,null,"",null,null,null,""]
[null,null,"",null,null,null,""]
[null,null,"",null,null,null,""]
[null,null,"",null,null,null,""]
[null,null,"",null,null,null,""]
[null,null,"",null,null,null,""]
[null,null,"",null,null,null,""]
[null,null,"",null,null,null,""]
[null,null,"",null,null,null,""]
[null,null,"",null,null,null,""]
[null,null,"",null,null,null,""]
[null,null,"",null,null,null,""]
[null,null,"",null,null,null,""]
[null,null,"",null,null,null,""]
[null,null,"",null,null,null,""]
[null,null,{"$f":"IF(A25539=\"\",\"\",HYPERLINK(\"https://www.medewerkermonitor.nl/\" & A25539))","v":""},null,null,null,{"$f":"IF(D25539=\"\",\"\",\"Beste \"&D25539&\" \"&E25539&\",\")","v":""}]
[null,null,"",null,null,null,""]
[null,null,"",null,null,null,""]
[null,null,"",null,null,null,""]
[null,null,"",null,null,null,""]
[null,null,"",null,null,null,""]
[null,null,"",null,null,null,""]
[null,null,"",null,null,null,""]
[null,null,"",null,null,null,""]
[null,null,"",null,null,null,""]
[null,null,"",null,null,null,""]
[null,null,"",null,null,null,""]
[null,null,"",null,null,null,""]
[null,null,"",null,null,null,""]
[null,null,"",null,null,null,""]
[null,null,"",null,null,null,""]
[null,null,"",null,null,null,""]
[null,null,"",null,null,null,""]
[null,null,"",null,null,null,""]
[null,null,"",null,null,null,""]
[null,null,"",null,null,null,""]
[null,null,"",null,null,null,""]
[null,null,"",null,null,null,""]
[null,null,"",null,null,null,""]
[null,null,{"$f":"IF(A25859=\"\",\"\",HYPERLINK(\"https://www.medewerkermonitor.nl/\" & A25859))","v":""},null,null,null,{"$f":"IF(D25859=\"\",\"\",\"Beste \"&D25859&\" \"&E25859&\",\")","v":""}]
[null,null,"",null,null,null,""]
[null,null,"",null,null,null,""]
[null,null,"",null,null,null,""]
[null,null,"",null,null,null,""]
[null,null,"",null,null,null,""]
[null,null,"",null,null,null,""]
[null,null,"",null,null,null,""]
[null,null,"",null,null,null,""]
[null,null,{"$f":"IF(A25987=\"\",\"\",HYPERLINK(\"https://www.medewerkermonitor.nl/\" & A25987))","v":""},null,null,null,{"$f":"IF(D25987=\"\",\"\",\"Beste \"&D25987&\" \"&E25987&\",\")","v":""}]
[null,null,"",null,null,null,""]
[null,null,"",null,null,null,""]
[null,null,"",null,null,null,""]
[null,null,"",null,null,null,""]
[null,null,"",null,null,null,""]
[null,null,"",null,null,null,""]
[null,null,"",null,null,null,""]
[null,null,"",null,null,null,""]
[null,null,"",null,null,null,""]
[null,null,"",null,null,null,""]
[null,null,"",null,null,null,""]
[null,null,"",null,null,null,""]
[null,null,"",null,null,null,""]
[null,null,"",null,null,null,""]
[null,null,"",null,null,null,""]
[null,null,"",null,null,null,""]
[null,null,"",null,null,null,""]
[null,null,"",null,null,null,""]
[null,null,"",null,null,null,""]
[null,null,"",null,null,null,""]
[null,null,"",null,null,null,""]
[null,null,"",null,null,null,""]
[null,null,"",null,null,null,""]
[null,null,"",null,null,null,""]
[null,null,"",null,null,null,""]
[null,null,"",null,null,null,""]
[null,null,"",null,null,null,""]
[null,null,"",null,null,null,""]
[null,null,"",null,null,null,""]
[null,null,"",null,null,null,""]
[null,null,"",null,null,null,""]
[null,null,"",null,null,null,""]
[null,null,"",null,null,null,""]
[null,null,"",null,null,null,""]
[null,null,"",null,null,null,""]
[null,null,"",null,null,null,""]
[null,null,"",null,null,null,""]
[null,null,"",null,null,null,""]
[null,null,"",null,null,null,""]
[null,null,"",null,null,null,""]
[null,null,"",null,null,null,""]
[null,null,"",null,null,null,""]
[null,null,"",null,null,null,""]
[null,null,"",null,null,null,""]
[null,null,"",null,null,null,""]
[null,null,"",null,null,null,""]
[null,null,"",null,null,null,""]
[null,null,"",null,null,null,""]
[null,null,"",null,null,null,""]
[null,null,"",null,null,null,""]
[null,null,"",null,null,null,""]
[null,null,"",null,null,null,""]
[null,null,"",null,null,null,""]
[null,null,"",null,null,null,""]
[null,null,"",null,null,null,""]
[null,null,"",null,null,null,""]
[null,null,"",null,null,null,""]
[null,null,"",null,null,null,""]
[null,null,"",null,null,null,""]
[null,null,"",null,null,null,""]
[null,null,"",null,null,null,""]
[null,null,"",null,null,null,""]
[null,null,"",null,null,null,""]
[null,null,"",null,null,null,""]
[null,null,"",null,null,null,""]
[null,null,"",null,null,null,""]
[null,null,"",null,null,null,""]
[null,null,"",null,null,null,""]
[null,null,"",null,null,null,""]
[null,null,"",null,null,null,""]
[null,null,"",null,null,null,""]
[null,null,"",null,null,null,""]
[null,null,"",null,null,null,""]
[null,null,"",null,null,null,""]
[null,null,"",null,null,null,""]
[null,null,"",null,null,null,""]
[null,null,"",null,null,null,""]
[null,null,"",null,null,null,""]
[null,null,"",null,null,null,""]
[null,null,"",null,null,null,""]
[null,null,"",null,null,null,""]
[null,null,"",null,null,null,""]
[null,null,"",null,null,null,""]
[null,null,"",null,null,null,""]
[null,null,"",null,null,null,""]
[null,null,"",null,null,null,""]
[null,null,"",null,null,null,""]
[null,null,"",null,null,null,""]
[null,null,"",null,null,null,""]
[null,null,"",null,null,null,""]
[null,null,"",null,null,null,""]
[null,null,"",null,null,null,""]
[null,null,{"$f":"IF(A27267=\"\",\"\",HYPERLINK(\"https://www.medewerkermonitor.nl/\" & A27267))","v":""},null,null,null,{"$f":"IF(D27267=\"\",\"\",\"Beste \"&D27267&\" \"&E27267&\",\")","v":""}]
[null,null,"",null,null,null,""]
[null,null,"",null,null,null,""]
[null,null,"",null,null,null,""]
[null,null,"",null,null,null,""]
[null,null,"",null,null,null,""]
[null,null,"",null,null,null,""]
[null,null,"",null,null,null,""]
[null,null,"",null,null,null,""]
[null,null,"",null,null,null,""]
[null,null,"",null,null,null,""]
[null,null,"",null,null,null,""]
[null,null,"",null,null,null,""]
[null,null,"",null,null,null,""]
[null,null,"",null,null,null,""]
[null,null,"",null,null,null,""]
[null,null,"",null,null,null,""]
[null,null,"",null,null,null,""]
[null,null,"",null,null,null,""]
[null,null,"",null,null,null,""]
[null,null,"",null,null,null,""]
[null,null,"",null,null,null,""]
[null,null,"",null,null,null,""]
[null,null,"",null,null,null,""]
[null,null,"",null,null,null,""]
[null,null,"",null,null,null,""]
[null,null,"",null,null,null,""]
[null,null,"",null,null,null,""]
[null,null,"",null,null,null,""]
[null,null,"",null,null,null,""]
[null,null,"",null,null,null,""]
[null,null,"",null,null,null,""]
[null,null,"",null,null,null,""]
[null,null,"",null,null,null,""]
[null,null,"",null,null,null,""]
[null,null,"",null,null,null,""]
[null,null,"",null,null,null,""]
[null,null,"",null,null,null,""]
[null,null,"",null,null,null,""]
[null,null,"",null,null,null,""]
[null,null,"",null,null,null,""]
[null,null,"",null,null,null,""]
[null,null,"",null,null,null,""]
[null,null,"",null,null,null,""]
[null,null,"",null,null,null,""]
[null,null,"",null,null,null,""]
[null,null,"",null,null,null,""]
[null,null,"",null,null,null,""]
[null,null,"",null,null,null,""]
[null,null,"",null,null,null,""]
[null,null,"",null,null,null,""]
[null,null,"",null,null,null,""]
[null,null,"",null,null,null,""]
[null,null,"",null,null,null,""]
[null,null,"",null,null,null,""]
[null,null,"",null,null,null,""]
[null,null,"",null,null,null,""]
[null,null,"",null,null,null,""]
[null,null,"",null,null,null,""]
[null,null,"",null,null,null,""]
[null,null,"",null,null,null,""]
[null,null,"",null,null,null,""]
[null,null,"",null,null,null,""]
[null,null,"",null,null,null,""]
[null,null,"",null,null,null,""]
[null,null,"",null,null,null,""]
[null,null,"",null,null,null,""]
[null,null,"",null,null,null,""]
[null,null,"",null,null,null,""]
[null,null,"",null,null,null,""]
[null,null,"",null,null,null,""]
[null,null,"",null,null,null,""]
[null,null,"",null,null,null,""]
[null,null,"",null,null,null,""]
[null,null,"",null,null,null,""]
[null,null,"",null,null,null,""]
[null,null,"",null,null,null,""]
[null,null,"",null,null,null,""]
[null,null,"",null,null,null,""]
[null,null,"",null,null,null,""]
[null,null,"",null,null,null,""]
[null,null,"",null,null,null,""]
[null,null,"",null,null,null,""]
[null,null,"",null,null,null,""]
[null,null,"",null,null,null,""]
[null,null,"",null,null,null,""]
[null,null,"",null,null,null,""]
[null,null,"",null,null,null,""]
[null,null,"",null,null,null,""]
[null,null,"",null,null,null,""]
[null,null,"",null,null,null,""]
[null,null,"",null,null,null,""]
[null,null,"",null,null,null,""]
[null,null,"",null,null,null,""]
[null,null,"",null,null,null,""]
[null,null,"",null,null,null,""]
[null,null,"",null,null,null,""]
[null,null,"",null,null,null,""]
[null,null,"",null,null,null,""]
[null,null,"",null,null,null,""]
[null,null,"",null,null,null,""]
[null,null,"",null,null,null,""]
[null,null,"",null,null,null,""]
[null,null,"",null,null,null,""]
[null,null,"",null,null,null,""]
[null,null,"",null,null,null,""]
[null,null,"",null,null,null,""]
[null,null,"",null,null,null,""]
[null,null,"",null,null,null,""]
[null,null,"",null,null,null,""]
[null,null,"",null,null,null,""]
[null,null,"",null,null,null,""]
[null,null,"",null,null,null,""]
[null,null,"",null,null,null,""]
[null,null,"",null,null,null,""]
[null,null,"",null,null,null,""]
[null,null,"",null,null,null,""]
[null,null,"",null,null,null,""]
[null,null,"",null,null,null,""]
[null,null,"",null,null,null,""]
[null,null,"",null,null,null,""]
[null,null,"",null,null,null,""]
[null,null,"",null,null,null,""]
[null,null,"",null,null,null,""]
[null,null,"",null,null,null,""]
[null,null,"",null,null,null,""]
[null,null,"",null,null,null,""]
[null,null,"",null,null,null,""]
[null,null,"",null,null,null,""]
[null,null,"",null,null,null,""]
[null,null,"",null,null,null,""]
[null,null,"",null,null,null,""]
[null,null,"",null,null,null,""]
[null,null,"",null,null,null,""]
[null,null,"",null,null,null,""]
[null,null,"",null,null,null,""]
[null,null,"",null,null,null,""]
[null,null,"",null,null,null,""]
[null,null,"",null,null,null,""]
[null,null,"",null,null,null,""]
[null,null,"",null,null,null,""]
[null,null,"",null,null,null,""]
[null,null,"",null,null,null,""]
[null,null,"",null,null,null,""]
[null,null,"",null,null,null,""]
[null,null,"",null,null,null,""]
[null,null,"",null,null,null,""]
[null,null,"",null,null,null,""]
[null,null,"",null,null,null,""]
[null,null,{"$f":"IF(A29315=\"\",\"\",HYPERLINK(\"https://www.medewerkermonitor.nl/\" & A29315))","v":""},null,null,null,{"$f":"IF(D29315=\"\",\"\",\"Beste \"&D29315&\" \"&E29315&\",\")","v":""}]
[null,null,"",null,null,null,""]
[null,null,"",null,null,null,""]
[null,null,"",null,null,null,""]
[null,null,"",null,null,null,""]
[null,null,"",null,null,null,""]
[null,null,"",null,null,null,""]
[null,null,"",null,null,null,""]
[null,null,"",null,null,null,""]
[null,null,"",null,null,null,""]
[null,null,"",null,null,null,""]
[null,null,"",null,null,null,""]
[null,null,"",null,null,null,""]
[null,null,"",null,null,null,""]
[null,null,"",null,null,null,""]
[null,null,"",null,null,null,""]
[null,null,"",null,null,null,""]
[null,null,"",null,null,null,""]
[null,null,"",null,null,null,""]
[null,null,"",null,null,null,""]
[null,null,{"$f":"IF(A29507=\"\",\"\",HYPERLINK(\"https://www.medewerkermonitor.nl/\" & A29507))","v":""},null,null,null,{"$f":"IF(D29507=\"\",\"\",\"Beste \"&D29507&\" \"&E29507&\",\")","v":""}]
[null,null,"",null,null,null,""]
[null,null,"",null,null,null,""]
[null,null,"",null,null,null,""]
[null,null,"",null,null,null,""]
[null,null,"",null,null,null,""]
[null,null,"",null,null,null,""]
[null,null,"",null,null,null,""]
[null,null,"",null,null,null,""]
[null,null,"",null,null,null,""]
[null,null,"",null,null,null,""]
[null,null,"",null,null,null,""]
[null,null,"",null,null,null,""]
[null,null,"",null,null,null,""]
[null,null,"",null,null,null,""]
[null,null,"",null,null,null,""]
[null,null,"",null,null,null,""]
[null,null,"",null,null,null,""]
[null,null,"",null,null,null,""]
[null,null,"",null,null,null,""]
[null,null,"",null,null,null,""]
[null,null,"",null,null,null,""]
[null,null,"",null,null,null,""]
[null,null,"",null,null,null,""]
[null,null,"",null,null,null,""]
[null,null,"",null,null,null,""]
[null,null,"",null,null,null,""]
[null,null,"",null,null,null,""]
[null,null,"",null,null,null,""]
[null,null,"",null,null,null,""]
[null,null,"",null,null,null,""]
[null,null,"",null,null,null,""]
[null,null,"",null,null,null,""]
[null,null,"",null,null,null,""]
[null,null,"",null,null,null,""]
[null,null,"",null,null,null,""]
[null,null,"",null,null,null,""]
[null,null,"",null,null,null,""]
[null,null,"",null,null,null,""]
[null,null,"",null,null,null,""]
[null,null,"",null,null,null,""]
[null,null,"",null,null,null,""]
[null,null,"",null,null,null,""]
[null,null,"",null,null,null,""]
[null,null,"",null,null,null,""]
[null,null,"",null,null,null,""]
[null,null,"",null,null,null,""]
[null,null,"",null,null,null,""]
[null,null,"",null,null,null,""]
[null,null,"",null,null,null,""]
[null,null,"",null,null,null,""]
[null,null,"",null,null,null,""]
[null,null,"",null,null,null,""]
[null,null,"",null,null,null,""]
[null,null,"",null,null,null,""]
[null,null,"",null,null,null,""]
[null,null,"",null,null,null,""]
[null,null,"",null,null,null,""]
[null,null,"",null,null,null,""]
[null,null,"",null,null,null,""]
[null,null,"",null,null,null,""]
[null,null,"",null,null,null,""]
[null,null,"",null,null,null,""]
[null,null,"",null,null,null,""]
[null,null,{"$f":"IF(A29571=\"\",\"\",HYPERLINK(\"https://www.medewerkermonitor.nl/\" & A29571))","v":""},null,null,null,{"$f":"IF(D29571=\"\",\"\",\"Beste \"&D29571&\" \"&E29571&\",\")","v":""}]
[null,null,"",null,null,null,""]
[null,null,"",null,null,null,""]
[null,null,"",null,null,null,""]
[null,null,"",null,null,null,""]
[null,null,"",null,null,null,""]
[null,null,"",null,null,null,""]
[null,null,"",null,null,null,""]
[null,null,"",null,null,null,""]
[null,null,"",null,null,null,""]
[null,null,"",null,null,null,""]
[null,null,"",null,null,null,""]
[null,null,"",null,null,null,""]
[null,null,"",null,null,null,""]
[null,null,"",null,null,null,""]
[null,null,"",null,null,null,""]
[null,null,"",null,null,null,""]
[null,null,"",null,null,null,""]
[null,null,"",null,null,null,""]
[null,null,"",null,null,null,""]
[null,null,"",null,null,null,""]
[null,null,"",null,null,null,""]
[null,null,"",null,null,null,""]
[null,null,"",null,null,null,""]
[null,null,"",null,null,null,""]
[null,null,"",null,null,null,""]
[null,null,"",null,null,null,""]
[null,null,"",null,null,null,""]
[null,null,"",null,null,null,""]
[null,null,"",null,null,null,""]
[null,null,"",null,null,null,""]
[null,null,"",null,null,null,""]
[null,null,"",null,null,null,""]
[null,null,"",null,null,null,""]
[null,null,"",null,null,null,""]
[null,null,"",null,null,null,""]
[null,null,"",null,null,null,""]
[null,null,"",null,null,null,""]
[null,null,"",null,null,null,""]
[null,null,"",null,null,null,""]
[null,null,"",null,null,null,""]
[null,null,"",null,null,null,""]
[null,null,"",null,null,null,""]
[null,null,"",null,null,null,""]
[null,null,"",null,null,null,""]
[null,null,"",null,null,null,""]
[null,null,"",null,null,null,""]
[null,null,"",null,null,null,""]
[null,null,"",null,null,null,""]
[null,null,"",null,null,null,""]
[null,null,"",null,null,null,""]
[null,null,"",null,null,null,""]
[null,null,"",null,null,null,""]
[null,null,"",null,null,null,""]
[null,null,"",null,null,null,""]
[null,null,"",null,null,null,""]
[null,null,"",null,null,null,""]
[null,null,"",null,null,null,""]
[null,null,"",null,null,null,""]
[null,null,"",null,null,null,""]
[null,null,"",null,null,null,""]
[null,null,"",null,null,null,""]
[null,null,"",null,null,null,""]
[null,null,"",null,null,null,""]
[null,null,{"$f":"IF(A29635=\"\",\"\",HYPERLINK(\"https://www.medewerkermonitor.nl/\" & A29635))","v":""},null,null,null,{"$f":"IF(D29635=\"\",\"\",\"Beste \"&D29635&\" \"&E29635&\",\")","v":""}]
[null,null,"",null,null,null,""]
[null,null,"",null,null,null,""]
[null,null,"",null,null,null,""]
[null,null,"",null,null,null,""]
[null,null,"",null,null,null,""]
[null,null,"",null,null,null,""]
[null,null,"",null,null,null,""]
[null,null,"",null,null,null,""]
[null,null,"",null,null,null,""]
[null,null,"",null,null,null,""]
[null,null,"",null,null,null,""]
[null,null,"",null,null,null,""]
[null,null,"",null,null,null,""]
[null,null,"",null,null,null,""]
[null,null,"",null,null,null,""]
[null,null,"",null,null,null,""]
[null,null,"",null,null,null,""]
[null,null,"",null,null,null,""]
[null,null,"",null,null,null,""]
[null,null,"",null,null,null,""]
[null,null,"",null,null,null,""]
[null,null,"",null,null,null,""]
[null,null,"",null,null,null,""]
[null,null,"",null,null,null,""]
[null,null,"",null,null,null,""]
[null,null,"",null,null,null,""]
[null,null,"",null,null,null,""]
[null,null,"",null,null,null,""]
[null,null,"",null,null,null,""]
[null,null,"",null,null,null,""]
[null,null,"",null,null,null,""]
[null,null,"",null,null,null,""]
[null,null,"",null,null,null,""]
[null,null,"",null,null,null,""]
[null,null,"",null,null,null,""]
[null,null,"",null,null,null,""]
[null,null,"",null,null,null,""]
[null,null,"",null,null,null,""]
[null,null,"",null,null,null,""]
[null,null,"",null,null,null,""]
[null,null,"",null,null,null,""]
[null,null,"",null,null,null,""]
[null,null,"",null,null,null,""]
[null,null,"",null,null,null,""]
[null,null,"",null,null,null,""]
[null,null,"",null,null,null,""]
[null,null,"",null,null,null,""]
[null,null,"",null,null,null,""]
[null,null,"",null,null,null,""]
[null,null,"",null,null,null,""]
[null,null,"",null,null,null,""]
[null,null,"",null,null,null,""]
[null,null,"",null,null,null,""]
[null,null,"",null,null,null,""]
[null,null,"",null,null,null,""]
[null,null,"",null,null,null,""]
[null,null,"",null,null,null,""]
[null,null,"",null,null,null,""]
[null,null,"",null,null,null,""]
[null,null,"",null,null,null,""]
[null,null,"",null,null,null,""]
[null,null,"",null,null,null,""]
[null,null,"",null,null,null,""]
[null,null,{"$f":"IF(A29699=\"\",\"\",HYPERLINK(\"https://www.medewerkermonitor.nl/\" & A29699))","v":""},null,null,null,{"$f":"IF(D29699=\"\",\"\",\"Beste \"&D29699&\" \"&E29699&\",\")","v":""}]
[null,null,"",null,null,null,""]
[null,null,"",null,null,null,""]
[null,null,"",null,null,null,""]
[null,null,"",null,null,null,""]
[null,null,"",null,null,null,""]
[null,null,"",null,null,null,""]
[null,null,"",null,null,null,""]
[null,null,"",null,null,null,""]
[null,null,"",null,null,null,""]
[null,null,"",null,null,null,""]
[null,null,"",null,null,null,""]
[null,null,"",null,null,null,""]
[null,null,"",null,null,null,""]
[null,null,"",null,null,null,""]
[null,null,"",null,null,null,""]
[null,null,"",null,null,null,""]
[null,null,"",null,null,null,""]
[null,null,"",null,null,null,""]
[null,null,"",null,null,null,""]
[null,null,"",null,null,null,""]
[null,null,"",null,null,null,""]
[null,null,"",null,null,null,""]
[null,null,"",null,null,null,""]
[null,null,"",null,null,null,""]
[null,null,"",null,null,null,""]
[null,null,"",null,null,null,""]
[null,null,"",null,null,null,""]
[null,null,"",null,null,null,""]
[null,null,"",null,null,null,""]
[null,null,"",null,null,null,""]
[null,null,"",null,null,null,""]
[null,null,"",null,null,null,""]
[null,null,"",null,null,null,""]
[null,null,"",null,null,null,""]
[null,null,"",null,null,null,""]
[null,null,"",null,null,null,""]
[null,null,"",null,null,null,""]
[null,null,"",null,null,null,""]
[null,null,"",null,null,null,""]
[null,null,"",null,null,null,""]
[null,null,"",null,null,null,""]
[null,null,"",null,null,null,""]
[null,null,"",null,null,null,""]
[null,null,"",null,null,null,""]
[null,null,"",null,null,null,""]
[null,null,"",null,null,null,""]
[null,null,"",null,null,null,""]
[null,null,"",null,null,null,""]
[null,null,"",null,null,null,""]
[null,null,"",null,null,null,""]
[null,null,"",null,null,null,""]
[null,null,"",null,null,null,""]
[null,null,"",null,null,null,""]
[null,null,"",null,null,null,""]
[null,null,"",null,null,null,""]
[null,null,"",null,null,null,""]
[null,null,"",null,null,null,""]
[null,null,"",null,null,null,""]
[null,null,"",null,null,null,""]
[null,null,"",null,null,null,""]
[null,null,"",null,null,null,""]
[null,null,"",null,null,null,""]
[null,null,"",null,null,null,""]
[null,null,{"$f":"IF(A29763=\"\",\"\",HYPERLINK(\"https://www.medewerkermonitor.nl/\" & A29763))","v":""},null,null,null,{"$f":"IF(D29763=\"\",\"\",\"Beste \"&D29763&\" \"&E29763&\",\")","v":""}]
[null,null,"",null,null,null,""]
[null,null,"",null,null,null,""]
[null,null,"",null,null,null,""]
[null,null,"",null,null,null,""]
[null,null,"",null,null,null,""]
[null,null,"",null,null,null,""]
[null,null,"",null,null,null,""]
[null,null,"",null,null,null,""]
[null,null,"",null,null,null,""]
[null,null,"",null,null,null,""]
[null,null,"",null,null,null,""]
[null,null,"",null,null,null,""]
[null,null,"",null,null,null,""]
[null,null,"",null,null,null,""]
[null,null,"",null,null,null,""]
[null,null,"",null,null,null,""]
[null,null,"",null,null,null,""]
[null,null,"",null,null,null,""]
[null,null,"",null,null,null,""]
[null,null,"",null,null,null,""]
[null,null,"",null,null,null,""]
[null,null,"",null,null,null,""]
[null,null,"",null,null,null,""]
[null,null,"",null,null,null,""]
[null,null,"",null,null,null,""]
[null,null,"",null,null,null,""]
[null,null,"",null,null,null,""]
[null,null,"",null,null,null,""]
[null,null,"",null,null,null,""]
[null,null,"",null,null,null,""]
[null,null,"",null,null,null,""]
[null,null,"",null,null,null,""]
[null,null,"",null,null,null,""]
[null,null,"",null,null,null,""]
[null,null,"",null,null,null,""]
[null,null,"",null,null,null,""]
[null,null,"",null,null,null,""]
[null,null,"",null,null,null,""]
[null,null,"",null,null,null,""]
[null,null,"",null,null,null,""]
[null,null,"",null,null,null,""]
[null,null,"",null,null,null,""]
[null,null,"",null,null,null,""]
[null,null,"",null,null,null,""]
[null,null,"",null,null,null,""]
[null,null,"",null,null,null,""]
[null,null,"",null,null,null,""]
[null,null,"",null,null,null,""]
[null,null,"",null,null,null,""]
[null,null,"",null,null,null,""]
[null,null,"",null,null,null,""]
[null,null,"",null,null,null,""]
[null,null,"",null,null,null,""]
[null,null,"",null,null,null,""]
[null,null,"",null,null,null,""]
[null,null,"",null,null,null,""]
[null,null,"",null,null,null,""]
[null,null,"",null,null,null,""]
[null,null,"",null,null,null,""]
[null,null,"",null,null,null,""]
[null,null,"",null,null,null,""]
[null,null,"",null,null,null,""]
[null,null,"",null,null,null,""]
[null,null,{"$f":"IF(A29827=\"\",\"\",HYPERLINK(\"https://www.medewerkermonitor.nl/\" & A29827))","v":""},null,null,null,{"$f":"IF(D29827=\"\",\"\",\"Beste \"&D29827&\" \"&E29827&\",\")","v":""}]
[null,null,"",null,null,null,""]
[null,null,"",null,null,null,""]
[null,null,"",null,null,null,""]
[null,null,"",null,null,null,""]
[null,null,"",null,null,null,""]
[null,null,"",null,null,null,""]
[null,null,"",null,null,null,""]
[null,null,"",null,null,null,""]
[null,null,"",null,null,null,""]
[null,null,"",null,null,null,""]
[null,null,"",null,null,null,""]
[null,null,"",null,null,null,""]
[null,null,"",null,null,null,""]
[null,null,"",null,null,null,""]
[null,null,"",null,null,null,""]
[null,null,"",null,null,null,""]
[null,null,"",null,null,null,""]
[null,null,"",null,null,null,""]
[null,null,"",null,null,null,""]
[null,null,"",null,null,null,""]
[null,null,"",null,null,null,""]
[null,null,"",null,null,null,""]
[null,null,"",null,null,null,""]
[null,null,"",null,null,null,""]
[null,null,"",null,null,null,""]
[null,null,"",null,null,null,""]
[null,null,"",null,null,null,""]
[null,null,"",null,null,null,""]
[null,null,"",null,null,null,""]
[null,null,"",null,null,null,""]
[null,null,"",null,null,null,""]
[null,null,"",null,null,null,""]
[null,null,"",null,null,null,""]
[null,null,"",null,null,null,""]
[null,null,"",null,null,null,""]
[null,null,"",null,null,null,""]
[null,null,"",null,null,null,""]
[null,null,"",null,null,null,""]
[null,null,"",null,null,null,""]
[null,null,"",null,null,null,""]
[null,null,"",null,null,null,""]
[null,null,"",null,null,null,""]
[null,null,"",null,null,null,""]
[null,null,"",null,null,null,""]
[null,null,"",null,null,null,""]
[null,null,"",null,null,null,""]
[null,null,"",null,null,null,""]
[null,null,"",null,null,null,""]
[null,null,"",null,null,null,""]
[null,null,"",null,null,null,""]
[null,null,"",null,null,null,""]
[null,null,"",null,null,null,""]
[null,null,"",null,null,null,""]
[null,null,"",null,null,null,""]
[null,null,"",null,null,null,""]
[null,null,"",null,null,null,""]
[null,null,"",null,null,null,""]
[null,null,"",null,null,null,""]
[null,null,"",null,null,null,""]
[null,null,"",null,null,null,""]
[null,null,"",null,null,null,""]
[null,null,"",null,null,null,""]
[null,null,"",null,null,null,""]
[null,null,{"$f":"IF(A29891=\"\",\"\",HYPERLINK(\"https://www.medewerkermonitor.nl/\" & A29891))","v":""},null,null,null,{"$f":"IF(D29891=\"\",\"\",\"Beste \"&D29891&\" \"&E29891&\",\")","v":""}]
[null,null,"",null,null,null,""]
[null,null,"",null,null,null,""]
[null,null,"",null,null,null,""]
[null,null,"",null,null,null,""]
[null,null,"",null,null,null,""]
[null,null,"",null,null,null,""]
[null,null,"",null,null,null,""]
[null,null,"",null,null,null,""]
[null,null,"",null,null,null,""]
[null,null,"",null,null,null,""]
[null,null,"",null,null,null,""]
[null,null,"",null,null,null,""]
[null,null,"",null,null,null,""]
[null,null,"",null,null,null,""]
[null,null,"",null,null,null,""]
[null,null,"",null,null,null,""]
[null,null,"",null,null,null,""]
[null,null,"",null,null,null,""]
[null,null,"",null,null,null,""]
[null,null,"",null,null,null,""]
[null,null,"",null,null,null,""]
[null,null,"",null,null,null,""]
[null,null,"",null,null,null,""]
[null,null,"",null,null,null,""]
[null,null,"",null,null,null,""]
[null,null,"",null,null,null,""]
[null,null,"",null,null,null,""]
[null,null,"",null,null,null,""]
[null,null,"",null,null,null,""]
[null,null,"",null,null,null,""]
[null,null,"",null,null,null,""]
[null,null,"",null,null,null,""]
[null,null,"",null,null,null,""]
[null,null,"",null,null,null,""]
[null,null,"",null,null,null,""]
[null,null,"",null,null,null,""]
[null,null,"",null,null,null,""]
[null,null,"",null,null,null,""]
[null,null,"",null,null,null,""]
[null,null,"",null,null,null,""]
[null,null,"",null,null,null,""]
[null,null,"",null,null,null,""]
[null,null,"",null,null,null,""]
[null,null,"",null,null,null,""]
[null,null,"",null,null,null,""]
[null,null,"",null,null,null,""]
[null,null,"",null,null,null,""]
[null,null,"",null,null,null,""]
[null,null,"",null,null,null,""]
[null,null,"",null,null,null,""]
[null,null,"",null,null,null,""]
[null,null,"",null,null,null,""]
[null,null,"",null,null,null,""]
[null,null,"",null,null,null,""]
[null,null,"",null,null,null,""]
[null,null,"",null,null,null,""]
[null,null,"",null,null,null,""]
[null,null,"",null,null,null,""]
[null,null,"",null,null,null,""]
[null,null,"",null,null,null,""]
[null,null,"",null,null,null,""]
[null,null,"",null,null,null,""]
[null,null,"",null,null,null,""]
[null,null,{"$f":"IF(A29955=\"\",\"\",HYPERLINK(\"https://www.medewerkermonitor.nl/\" & A29955))","v":""},null,null,null,{"$f":"IF(D29955=\"\",\"\",\"Beste \"&D29955&\" \"&E29955&\",\")","v":""}]
[null,null,"",null,null,null,""]
[null,null,"",null,null,null,""]
[null,null,"",null,null,null,""]
[null,null,"",null,null,null,""]
[null,null,"",null,null,null,""]
[null,null,"",null,null,null,""]
[null,null,"",null,null,null,""]
[null,null,"",null,null,null,""]
[null,null,"",null,null,null,""]
[null,null,"",null,null,null,""]
[null,null,"",null,null,null,""]
[null,null,"",null,null,null,""]
[null,null,"",null,null,null,""]
[null,null,"",null,null,null,""]
[null,null,"",null,null,null,""]
[null,null,"",null,null,null,""]
[null,null,"",null,null,null,""]
[null,null,"",null,null,null,""]
[null,null,"",null,null,null,""]
[null,null,"",null,null,null,""]
[null,null,"",null,null,null,""]
[null,null,"",null,null,null,""]
[null,null,"",null,null,null,""]
[null,null,"",null,null,null,""]
[null,null,"",null,null,null,""]
[null,null,"",null,null,null,""]
[null,null,"",null,null,null,""]
[null,null,"",null,null,null,""]
[null,null,"",null,null,null,""]
[null,null,"",null,null,null,""]
[null,null,"",null,null,null,""]
[null,null,"",null,null,null,""]
[null,null,"",null,null,null,""]
[null,null,"",null,null,null,""]
[null,null,"",null,null,null,""]
[null,null,"",null,null,null,""]
[null,null,"",null,null,null,""]
[null,null,"",null,null,null,""]
[null,null,"",null,null,null,""]
[null,null,"",null,null,null,""]
[null,null,"",null,null,null,""]
[null,null,"",null,null,null,""]
[null,null,"",null,null,null,""]
[null,null,"",null,null,null,""]
[null,null,"",null,null,null,""]